Cogmind - Beta 15 *** ADVENTURER MODE // 2025.09.23 @ 12:31:47 // Winter2019/RPGLIKE Player: Gallgagger Result: Destroyed by G-73 Enforcer with Heavy Laser Performance ------------- Evolutions (8) 4000 Regions Visited (28) 5600 Robots Destroyed (697) 3485 Value Destroyed (43912) 43912 Prototype IDs (127) 2540 Alien Tech Used (0) 0 Bonus (47044) 47044 TOTAL SCORE: 106581 Bonus ------- High Alert Combat Kills 12678 Follower Combat Kills 2613 Entered Garrisons 600 Entered DSFs 500 Acquired ECA 300 Met Zhirov 300 Met Warlord at Base 500 MAIN.C Attacked Warlord 500 Warlord Defense Kills 23984 Built Enhanced Grunts 300 Met R17 at Cetus 500 Read Decrypted Archives 300 Met R17 at Research 2000 Met Warlord at Research 2000 Scanned by Researcher 500 Friendly Fire -531 Cogmind --------- Core Integrity 0/1150 Matter 253/300 Energy 830/830 System Corruption 18% Temperature Cool (5) Movement Flying (68) Ox1 Location -2/Protoforge Parts ------- > --- POWER (3) -------- Light Antimatter Reactor Mini Fusion Reactor Light Quantum Reactor > --- PROPULSION (6) --- Experimental Biomechanical Wings Experimental Surge Thruster Experimental Surge Thruster Concept Fieldthrust Drive Concept Fieldthrust Drive Concept Fieldthrust Drive > --- UTILITY (9) ------ 2N-1CE's Frost Array Advanced Energy Well Advanced Signal Interpreter Graphene Brace Experimental Focal Shield Experimental Thermal Shield Advanced Hardlight Generator System Purifier > --- WEAPON (6) ------- Concept Lightning Penetrator Concept Lightning Penetrator Concept Helical Railcannon > --- INVENTORY (6) ---- Advanced Cryofiber Web Crosscalibrator Subatomic Replicator Faulty Concept Plasma Driver Advanced Datajack Peak State ------------ > --- POWER ------------ Light Antimatter Reactor Mini Fusion Reactor Light Quantum Reactor > --- PROPULSION ------- Experimental Biomechanical Wings Experimental Biomechanical Wings Experimental Biomechanical Wings Experimental Surge Thruster Experimental Surge Thruster Concept Fieldthrust Drive > --- UTILITY ---------- Advanced Cryofiber Web 2N-1CE's Frost Array Advanced Energy Well Advanced Signal Interpreter Graphene Brace Experimental Focal Shield Experimental Thermal Shield Advanced Hardlight Generator System Purifier > --- WEAPON ----------- PD Laser PD Laser > --- INVENTORY -------- Concept Fieldthrust Drive Concept Fieldthrust Drive Subatomic Replicator [Rating: 204] Favorites ----------- Power Mini Fusion Reactor Engine Light Ion Engine Power Core Micro Fission Core Reactor Mini Fusion Reactor Propulsion Field Propulsion Drive Hover Unit Combat Linear Gravjet Flight Unit Field Propulsion Drive Utility Improved Signal Interpreter Device Advanced Weight Redist. System Storage Advanced Energy Well Processor Improved Signal Interpreter Hackware Experimental Hacking Suite Protection Heavy Reflective Plating Weapon Thermoblaster Energy Gun PD Laser Energy Cannon Ion Burst Cannon Ballistic Gun Helical Railgun Ballistic Cannon Concept Helical Railcannon Launcher Thermoblaster Special Weapon Improved Plasma Cutter Slashing Weapon Phasing Sabre Special Melee Weapon Advanced Datajack Build | -11 -10 -10 -9 -9 -7 -6 -6 -6 -5 -5 -5 -5 -5 -5 -4 -4 -4 -4 -4 -4 -3 -3 -3 -3 -3 -2 -2 -2 ------- Run | Yrd Mat Min Mat Min Zio Pro Fac DSF Fac Ext Cet Arc Hub Gar Fac Gar Fac Upp Upp War Pro Res Gar Res Tes Res Qua Frg Slots Evolved 20 | 4 3 1 2 . . 1 . 1 1 1 . . . . . 1 . . . . . . 2 . . 2 . 1 Power 2 | 1 . . . . . . . . . . . . . . . . . . . . . . . . . 1 . . Propulsion 5 | 1 . . . . . . . 1 1 . . . . . . 1 . . . . . . . . . . . 1 Utility 8 | 1 2 1 2 . . 1 . . . 1 . . . . . . . . . . . . . . . . . . Weapon 5 | 1 1 . . . . . . . . . . . . . . . . . . . . . 2 . . 1 . . Parts Attached 165 | 2 9 5 5 1 3 6 . 3 13 8 2 . 5 3 10 5 4 2 . 34 . 5 5 . 13 6 1 15 Power 13 | 2 . 1 . . . . . . 1 2 . . 1 . 1 . 1 . . 1 . . . . . 3 . . Engine 4 | 2 . . . . . . . . 1 1 . . . . . . . . . . . . . . . . . . Core 3 | . . 1 . . . . . . . 1 . . 1 . . . . . . . . . . . . . . . Reactor 6 | . . . . . . . . . . . . . . . 1 . 1 . . 1 . . . . . 3 . . Propulsion 30 | . 2 . 1 . 1 . . 2 4 . . . 1 . . 2 . . . 8 . 1 . . . . . 8 Treads . | . . . . . . . . . . . . . . . . . . . . . . . . . . . . . Leg . | . . . . . . . . . . . . . . . . . . . . . . . . . . . . . Wheel . | . . . . . . . . . . . . . . . . . . . . . . . . . . . . . Hover 6 | . . . . . . . . . . . . . . . . . . . . 5 . 1 . . . . . . Flight 24 | . 2 . 1 . 1 . . 2 4 . . . 1 . . 2 . . . 3 . . . . . . . 8 Utility 75 | . 4 3 2 1 1 4 . 1 4 1 . . 2 3 8 1 . 2 . 21 . 4 1 . 8 1 . 3 Device 53 | . 4 3 . 1 1 4 . 1 2 1 . . 1 2 3 . . 2 . 16 . 3 1 . 5 1 . 2 Storage 1 | . . . . . . . . . . . . . . . . . . . . 1 . . . . . . . . Processor 9 | . . . 2 . . . . . 1 . . . . . 2 . . . . 1 . 1 . . 1 . . 1 Hackware 5 | . . . . . . . . . 1 . . . . . 3 . . . . . . . . . 1 . . . Protection 7 | . . . . . . . . . . . . . 1 1 . 1 . . . 3 . . . . 1 . . . Artifact . | . . . . . . . . . . . . . . . . . . . . . . . . . . . . . Weapon 47 | . 3 1 2 . 1 2 . . 4 5 2 . 1 . 1 2 3 . . 4 . . 4 . 5 2 1 4 Energy Gun 22 | . 2 1 2 . . 2 . . 1 3 1 . . . 1 1 . . . . . . 1 . 3 1 1 2 Energy Cannon 3 | . . . . . . . . . 1 . . . . . . . 1 . . . . . . . 1 . . . Ballistic Gun 4 | . . . . . . . . . . . 1 . . . . . 2 . . . . . . . . . . 1 Ballistic Cannon 3 | . . . . . . . . . . . . . . . . . . . . 1 . . 1 . . . . 1 Launcher 4 | . . . . . . . . . . . . . . . . . . . . 3 . . . . 1 . . . Special Weapon 4 | . . . . . . . . . 2 . . . 1 . . . . . . . . . . . . 1 . . Impact Weapon . | . . . . . . . . . . . . . . . . . . . . . . . . . . . . . Slashing Weapon 3 | . . . . . . . . . . 1 . . . . . . . . . . . . 2 . . . . . Piercing Weapon . | . . . . . . . . . . . . . . . . . . . . . . . . . . . . . Special Melee Weapon 4 | . 1 . . . 1 . . . . 1 . . . . . 1 . . . . . . . . . . . . Unidentified Prototypes 44 | . . 1 2 1 1 . . 1 1 . 2 . . . 2 . 2 1 . 14 . 3 . . 11 1 1 . Corrupted Parts 4 | . . . . . . . . . . . 1 . . . . . 2 1 . . . . . . . . . . System Corruption 7 | . . . . . . . . . . . 1 . . . . . 5 1 . . . . . . . . . . Parts Lost 5 | . . . . . . 1 . 1 . 1 . . . . . . . . . 2 . . . . . . . . Power 1 | . . . . . . . . . . 1 . . . . . . . . . . . . . . . . . . Propulsion 1 | . . . . . . . . 1 . . . . . . . . . . . . . . . . . . . . Utility 3 | . . . . . . 1 . . . . . . . . . . . . . 2 . . . . . . . . Weapon . | . . . . . . . . . . . . . . . . . . . . . . . . . . . . . Highest Loss Streak 1 | . . . . . . 1 . 1 . 1 . . . . . . . . . 1 . . . . . . . . To Critical Strikes 1 | . . . . . . . . . . 1 . . . . . . . . . . . . . . . . . . Average Backups 3 | . . . . . 1 . . 2 2 2 2 2 2 3 3 2 3 4 4 4 4 5 5 4 4 4 3 3 Power . | . . . . . . . . . . . . . . . . . . . . . . . . . . . . . Propulsion . | . . . . . . . . . . . . . . . . . . . . . . . . . . . . . Utility 1 | . . . . . 1 . . 1 1 . 1 1 . 2 2 1 1 3 3 2 3 4 4 . . . . . Weapon . | . . . . . . . . . . . . . . . . . . . . . . . . 1 1 1 1 . Tool/Special . | . . . . . . . . . . . . . . . . . . . . . . . . . . . . . Unused Backups 7 | . . . . . . . . . . . . . . . . . 1 . . . . . 3 . . . 1 2 Power . | . . . . . . . . . . . . . . . . . . . . . . . . . . . . . Propulsion . | . . . . . . . . . . . . . . . . . . . . . . . . . . . . . Utility 3 | . . . . . . . . . . . . . . . . . . . . . . . 3 . . . . . Weapon 1 | . . . . . . . . . . . . . . . . . . . . . . . . . . . . 1 Tool/Special 3 | . . . . . . . . . . . . . . . . . 1 . . . . . . . . . 1 1 Average Slot Usage (%) 92 | . 92 100 100 100 100 98 100 93 98 99 98 100 89 84 89 89 87 88 89 89 100 100 99 90 89 84 90 88 Engine 2 | . 22 9 7 7 7 6 6 6 5 5 5 5 2 . . . . . . . . . . . . . . . Core 4 | . . 6 7 7 7 6 6 5 5 4 5 5 8 11 10 10 7 5 5 4 . . . . . . . . Reactor 4 | . . . . . . . . . . . . . . . . . 2 5 5 5 10 10 9 9 9 9 13 12 Hover 6 | . . . . . . . . . . . . . . . . . . . . 2 26 26 25 23 23 21 21 14 Flight 13 | . 21 16 15 14 14 13 13 14 18 22 22 22 16 16 15 18 21 21 21 19 . . . . . . . 7 Device 31 | . 22 40 39 35 35 42 46 44 37 35 38 38 30 23 30 34 31 30 31 28 36 36 35 33 30 30 30 29 Storage 1 | . . . . . . . . . . . . . . . . . . . . 2 5 5 4 4 4 4 4 3 Processor 6 | . . . 3 14 14 7 6 6 10 11 11 11 11 11 11 6 5 5 5 7 5 5 4 4 4 4 4 4 Protection 1 | . . . . . . . . . . . . . 2 5 2 2 5 5 5 4 . . . . . . . . Energy Gun 5 | . 21 16 15 14 14 13 13 12 4 8 3 5 5 5 5 9 . . . . . . . 4 4 7 4 4 Ballistic Gun 2 | . . . . . . . . . . . 2 5 5 5 4 . 6 10 10 3 . . . . . . . . Launcher 3 | . . . . . . . . . . . . . . . . . . . . 5 10 10 9 9 8 3 7 5 Special Weapon 1 | . . . . . . . . . 6 2 5 5 5 5 5 3 . . . . . . . . . . . . Special Melee Weapon 3 | . 4 8 7 7 7 6 6 1 2 3 . . . . . 1 5 5 5 4 5 5 4 . . . 3 3 Peak Build Rating 204 | 2 13 30 30 38 43 59 59 59 78 93 97 91 102 103 113 114 121 124 121 145 145 148 159 159 181 183 188 204 Average Rating 113 | 1 9 18 24 31 40 50 59 56 66 80 91 91 93 96 104 109 116 120 120 128 144 146 145 158 162 175 180 184 On Entrance 94 | . 2 13 20 30 38 43 59 59 58 78 93 91 91 102 102 102 113 121 120 121 145 145 146 159 158 167 181 181 Naked Turns . | . . . . . . . . . . . . . . . . . . . . . . . . . . . . . Heaviest Build 89 | 6 14 19 21 21 20 27 27 30 32 41 42 42 50 50 50 60 61 59 59 64 54 62 73 73 77 89 89 89 Greatest Support 91 | 8 19 24 25 25 27 30 30 35 51 51 51 51 51 51 51 60 62 62 60 91 91 91 90 90 90 90 90 90 Greatest Overweight (x) 3 | . . . . . . . . 1 . . . . . 1 1 . 1 . . . . . . . . . 1 3 Average Overweight (x) . | . . . . . . . . . . . . . . . . . . . . . . . . . . . . . Largest Inventory Capacity 6 | . 1 1 1 2 2 2 2 4 4 4 4 4 4 5 5 5 5 5 5 6 6 6 6 6 6 6 6 6 Average Capacity 4 | . . 1 1 1 2 2 2 3 4 4 4 4 4 4 5 5 5 5 5 5 6 6 6 6 6 6 6 6 Most Carried 6 | . 1 1 1 2 2 2 1 4 4 4 4 4 4 5 5 5 5 5 5 6 4 6 6 6 6 6 6 6 Average Carried 4 | . . . . 1 2 1 1 3 3 3 3 3 3 4 4 4 4 5 5 5 4 5 5 6 6 5 5 5 Final Capacity 6 | . 1 1 1 2 2 2 2 4 4 4 4 4 4 5 5 5 5 5 5 6 6 6 6 6 6 6 6 6 Final Carried 6 | . 1 1 1 2 2 1 1 4 3 3 3 4 4 5 4 4 5 5 5 4 4 6 6 6 6 6 5 5 Class Distribution -------------------- 68% | Hacker-Scout 15% | Hacker-Ninja 4% | Hacker-Mutant 4% | Scavenger-Scout Dominant Class ---------------- Hacker-Mutant | -10/Materials Hacker-Mutant | -10/Mines Hacker-Ninja | -9/Materials Hacker-Ninja | -9/Mines Hacker-Scout | -7/Zion Hacker-Scout | -6/Proximity Caves Hacker-Scout | -6/Factory Scavenger-Scout | -6/DSF Hacker-Scout | -5/Factory Hacker-Ninja | -5/Extension Commander-Scout | -5/Cetus Commander-Scout | -5/Archives Hacker-Scout | -5/Hub_04(d) Hacker-Scout | -5/Garrison Hacker-Scout | -4/Factory Hacker-Scout | -4/Garrison Hacker-Ninja | -4/Factory Hacker-Ninja | -4/Upper Caves Hacker-Scout | -4/Upper Caves Hacker-Scout | -4/Warlord Scavenger-Scout | -3/Proximity Caves Hacker-Scout | -3/Research Hacker-Scout | -3/Garrison Hacker-Scout | -3/Research Hacker-Scout | -3/Testing Hacker-Scout | -2/Research Hacker-Scout | -2/Quarantine Hacker-Scout | -2/Protoforge Resources | -11 -10 -10 -9 -9 -7 -6 -6 -6 -5 -5 -5 -5 -5 -5 -4 -4 -4 -4 -4 -4 -3 -3 -3 -3 -3 -2 -2 -2 ----------- Run | Yrd Mat Min Mat Min Zio Pro Fac DSF Fac Ext Cet Arc Hub Gar Fac Gar Fac Upp Upp War Pro Res Gar Res Tes Res Qua Frg Matter Collected 9923 | 209 141 70 70 . 50 80 . 40 170 193 40 . 318 392 560 168 745 1130 205 4278 10 40 115 20 250 150 39 440 Remotely . | . . . . . . . . . . . . . . . . . . . . . . . . . . . . . Salvage Created 32682 | . 1275 37 1518 142 . 1048 . 165 389 275 . . 928 1200 893 1867 1469 1825 230 5943 379 669 2337 598 782 2811 1276 4626 Parts 1445 | . 74 8 123 12 . 29 . 12 14 11 2 . 30 67 87 88 72 63 17 230 8 14 82 20 52 118 55 157 Haulers Intercepted 9 | . 2 . 3 . . . . . . . . . . . 1 . 1 . . . . 2 . . . . . . Recyclers Shooed 2 | . . . . . . . . . . . . . . . . . 2 . . . . . . . . . . . Parts Field Recycled . | . . . . . . . . . . . . . . . . . . . . . . . . . . . . . Retrieved Matter . | . . . . . . . . . . . . . . . . . . . . . . . . . . . . . Parts Self-Destructed 103 | . . . . . . 15 . . . . . . . . . . . 62 19 . 7 . . . . . . . Prevented 12 | . . . . . . 11 . . . . . . . . . . . 1 . . . . . . . . . . Kills | -11 -10 -10 -9 -9 -7 -6 -6 -6 -5 -5 -5 -5 -5 -5 -4 -4 -4 -4 -4 -4 -3 -3 -3 -3 -3 -2 -2 -2 ------- Run | Yrd Mat Min Mat Min Zio Pro Fac DSF Fac Ext Cet Arc Hub Gar Fac Gar Fac Upp Upp War Pro Res Gar Res Tes Res Qua Frg Combat Hostiles Destroyed 677 | . 28 6 42 9 . 12 . 5 8 7 1 . 11 23 24 31 22 29 5 177 8 11 47 10 15 44 25 77 Guns 401 | . 28 6 37 9 . 8 . 5 . 6 1 . 11 23 23 24 18 29 5 48 . . . 7 6 41 13 53 Cannons 10 | . . . . . . . . . 7 . . . . . . . 3 . . . . . . . . . . . AOE 229 | . . . 5 . . 2 . . . . . . . . . 3 . . . 122 7 11 35 1 9 3 11 20 Classes Destroyed 29 | . 5 1 2 . . 4 . 1 1 1 . . . 1 1 . 1 . 1 6 . . . 1 1 . 1 1 Worker 17 | . 1 . 1 . . . . . . . . . . . 4 . 5 . . . . . . . 3 . 3 . Builder 8 | . . . 2 . . . . . . . . . . . 1 . . . . . . 1 . . 2 . 1 1 Hauler 9 | . 2 . 3 . . . . . . . . . . . 1 . 1 . . . . 2 . . . . . . Minesweeper 1 | . . . . . . 1 . . . . . . . . . . . . . . . . . . . . . . Mechanic 3 | . . . . . . . . . . . . . . . . . . . . 1 . . . . . . . 2 Operator 2 | . . . . . . . . . . . . . . . 1 . . . . . . 1 . . . . . . Drone 6 | . . . . . . 1 . . . . . . . . . . . . . . . . . . . . . 5 Watcher 22 | . 2 . 3 . . . . . 1 . . . 2 . 3 . . . . . . 1 . 3 . 3 2 2 Swarmer 92 | . 5 3 12 9 . 1 . . . . . . . 3 7 6 6 6 . 6 4 5 3 . . 9 . 7 Cutter 16 | . . . . . . . . 4 2 . . . 2 . 3 3 . . . . . . 2 . . . . . Saboteur 6 | . . . . . . . . . . . . . . . . . . . . 5 . . . . . . . 1 Grunt 268 | . 23 . 23 . . 7 . . . 2 . . 2 10 2 12 6 12 1 100 . 2 26 6 3 14 8 9 Brawler 17 | . . . . . . . . . . . . . . 1 . 2 2 3 . 7 . . 1 . . 1 . . Duelist 12 | . . . . . . 1 . . . . . . . . . . 1 3 . 5 . . . . . 2 . . Protector 17 | . . . . . . . . . . . . . . . . . 1 . . 16 . . . . . . . . Researcher 4 | . . . . . . . . . . . . . . . . . . . . . . . . . 1 . . 3 Sentry 51 | . . . 7 . . 1 . 1 1 2 . . 5 4 . 3 2 2 . . 1 1 4 2 1 4 1 9 Demolisher 3 | . . . . . . . . . . . . . . . . . . . . 2 . . . . . 1 . . Specialist 9 | . . . . . . . . . . . . . . . . . . . . 3 . . 3 . . . 3 . Hunter 62 | . . . . . . . . . 1 2 . . 2 1 6 2 2 2 . 7 2 3 3 . . 6 8 15 Programmer 60 | . . . . . . 1 . . 4 . . . . 3 6 2 2 . 3 13 . . 2 . 11 2 4 7 Heavy 1 | . . . . . . . . . . . . . . . . . . . . . . . . 1 . . . . Q-Series 1 | . . . . . . . . . . . . . . . . . . . . . . . . . . . . 1 Behemoth 13 | . . . . . . . . . . 1 . . . 1 . 1 . 1 . 2 1 . 1 1 . 3 . 1 Cetus Guard 1 | . . . . . . . . . . . 1 . . . . . . . . . . . . . . . . . Hotshot 14 | . . . . . . . . . . . . . . . . . . . . . . . . . . . . 14 Decapitator 4 | . . . . . . . . . . . . . . . . . . . . . . . . . . . . 4 Immortal 2 | . . . . . . . . . . . . . . . . . . . . . . . . . . . . 2 Striker 6 | . . . . . . . . . . . . . . . . . . . . 4 . . . . . 2 . . Executioner 8 | . . . . . . . . . . . . . . . . . . . . 6 . . 2 . . . . . Alpha 7 3 | . . . . . . . . . . . . . . . . . . . . . . . . . . . 1 2 Assembled 3 | . . 3 . . . . . . . . . . . . . . . . . . . . . . . . . . Butcher 1 | . . . . . . . . . . . . . . . . . . . . . . . . . . 1 . . Marauder 1 | . . . . . . . . . . . . . . . . . . . . 1 . . . . . . . . Mutant 1 | . . . . . . . . . . . . . . . . . . . 1 . . . . . . . . . Best Kill Streak 21 | . 6 7 11 6 . 3 . 4 4 2 1 . 3 5 7 7 10 7 3 13 6 5 11 4 13 21 11 11 Combat Bots Only 19 | . 5 3 10 6 . 3 . 4 4 2 1 . 3 5 6 7 5 7 3 13 6 5 11 4 6 19 6 10 Max Kills in Single Turn 7 | . 2 2 2 2 . 1 . 2 1 1 1 . 1 2 2 2 2 2 1 5 2 3 3 1 7 4 3 3 Gunslinging 1 | . 1 1 1 1 . . . . . . . . . . 1 1 . 1 . 1 . . . . . . . . Exploded 5 | . . . 1 . . 1 . . . . . . . . . 2 . . . 5 2 3 3 1 3 1 2 3 Melee . | . . . . . . . . . . . . . . . . . . . . . . . . . . . . . Uniques/NPCs Destroyed . | . . . . . . . . . . . . . . . . . . . . . . . . . . . . . Combat | -11 -10 -10 -9 -9 -7 -6 -6 -6 -5 -5 -5 -5 -5 -5 -4 -4 -4 -4 -4 -4 -3 -3 -3 -3 -3 -2 -2 -2 -------- Run | Yrd Mat Min Mat Min Zio Pro Fac DSF Fac Ext Cet Arc Hub Gar Fac Gar Fac Upp Upp War Pro Res Gar Res Tes Res Qua Frg Hostile Shots Fired 3731 | . 90 9 121 18 . 129 . 42 64 57 22 . 97 107 296 190 82 166 39 836 35 27 172 32 41 147 233 679 Missed 1594 | . 36 . 61 11 . 63 . 20 30 20 12 . 31 36 113 103 32 63 13 441 15 16 71 16 11 52 91 237 Hits 2137 | . 54 9 60 7 . 66 . 22 34 37 10 . 66 71 183 87 50 103 26 395 20 11 101 16 30 95 142 442 Melee 42 | . . . . . . 2 . 1 4 . . . 7 . 11 . . . . 5 . . . . . 1 . 11 Projectile 2095 | . 54 9 60 7 . 64 . 21 30 37 10 . 59 71 172 87 50 103 26 390 20 11 101 16 30 94 142 431 AOE 16 | . . . . . . . . 1 1 . . . . . 3 1 . . . 4 . . . . . 3 . 3 Critical Strikes 127 | . 1 . 1 . . 5 . 1 1 1 2 . 7 1 10 4 1 7 2 22 3 . 3 1 6 4 9 35 Actively Blocked 18 | . . . . . . . . . . . . . . . . . . . . . . . . . . . . 18 Part Disruptions 3 | . . . . . . . . . . . . . . . . . . . . 1 . . . . . . 1 1 Damage Taken 20792 | . 486 79 618 40 . 1109 . 265 502 515 171 . 927 856 1607 530 257 450 250 5393 262 110 384 99 540 543 990 3809 Core 15358 | . 414 60 500 32 . 910 . 219 394 391 141 . 710 498 1299 382 137 263 157 3588 212 84 293 76 429 405 762 3002 Absorbed by Shields 8385 | . . . . . . . . . . . 22 . . 14 662 594 390 797 92 479 . 86 700 128 80 720 972 2649 Redirected to Core 12492 | . 228 52 355 22 . 683 . 137 347 366 103 . 581 441 948 279 105 219 126 2974 168 80 228 68 395 359 689 2539 Ignored by Resistances 20900 | . 153 23 182 14 . 375 . 147 199 309 102 . 521 637 1547 856 498 985 159 4066 189 139 883 205 316 1152 1771 5472 Regen/Repaired (Parts) 5 | . 5 . . . . . . . . . . . . . . . . . . . . . . . . . . . Core Remaining (%) 75 | 100 . 100 . . . 39 . 23 . . . . . 92 . . . . . . 100 . . . 77 . . . Volleys Fired 1598 | . 96 8 78 13 . 65 . 7 38 25 11 . 62 90 109 139 78 111 31 338 13 19 77 15 28 4 31 112 Largest 3 | . 2 2 2 2 . 2 . 2 2 2 1 . 3 2 2 2 2 2 2 2 2 2 2 2 2 2 2 3 Hottest 520 | . 60 93 101 101 . 156 . 156 156 156 81 . 135 115 145 159 88 76 76 520 520 520 520 520 520 520 520 520 Shots Fired 3229 | . 192 16 154 21 . 92 . 14 49 50 11 . 109 156 180 213 139 222 53 603 26 36 132 53 57 124 124 403 Gun 2480 | . 192 16 154 21 . 92 . 14 25 50 11 . 108 156 180 213 127 222 53 345 . . . 23 18 116 68 276 Cannon 43 | . . . . . . . . . 24 . . . . . . . 12 . . . . . 1 . . . . 6 Launcher 705 | . . . . . . . . . . . . . . . . . . . . 258 26 36 131 30 39 8 56 121 Special 1 | . . . . . . . . . . . . . 1 . . . . . . . . . . . . . . . Kinetic 1008 | . . . . . . . . . . . . . 62 88 102 . 127 222 53 345 . . 1 . . . . 8 Thermal 1826 | . 192 16 80 13 . 33 . 14 49 50 11 . 47 68 71 89 . . . 219 26 36 131 53 57 124 124 323 Explosive 39 | . . . . . . . . . . . . . . . . . . . . 39 . . . . . . . . Electromagnetic 356 | . . . 74 8 . 59 . . . . . . . . 7 124 12 . . . . . . . . . . 72 Robot Hit Streak 69 | . 27 8 47 8 . 23 . 8 17 14 7 . 16 19 69 49 47 39 26 66 25 29 57 26 10 23 67 68 Robot Miss Streak 6 | . 3 2 3 2 . 5 . 1 4 1 2 . 2 3 2 2 1 1 2 2 . 1 1 4 3 5 3 6 Penetration Max 2 | . . . . . . . . . . . . . 1 1 1 . 2 2 1 2 . . . . . . . 2 Secondary Targets 51 | . 5 1 10 2 . 1 . 2 . . . . 1 1 5 2 1 5 1 13 . . . . . . . 1 Max Gunslinging Chain 1 | . 1 1 1 1 . 1 . 1 . . . . 1 1 1 1 1 1 1 1 . . . . . . . 1 Autonomous 475 | . . . . . . . . . . . . . . . . . . . . . . . . 23 22 145 80 205 Shots Hit Robots 2645 | . 151 12 130 13 . 76 . 11 42 54 8 . 69 113 125 171 123 199 41 469 22 28 133 40 34 118 107 356 Core Hits 1747 | . 65 8 82 9 . 44 . 6 19 16 3 . 30 51 59 69 65 66 14 491 18 24 98 32 33 109 83 253 Critical Kills 26 | . . . . . . . . . . . . . 2 9 1 . 3 2 . 9 . . . . . . . . Critical Parts Destroyed 41 | . . . . . . . . . . . . . 1 5 13 . 4 6 3 9 . . . . . . . . Critical Strikes 93 | . . . 3 1 . 5 . . 2 4 1 . 4 14 14 1 7 9 3 18 . . 4 . . . . 3 Burn 15 | . . . 3 1 . 5 . . 2 3 1 . . . . . . . . . . . . . . . . . Destroy 69 | . . . . . . . . . . . . . 4 14 14 . 7 9 3 18 . . . . . . . . Corrupt 4 | . . . . . . . . . . . . . . . . 1 . . . . . . . . . . . 3 Sever 5 | . . . . . . . . . . 1 . . . . . . . . . . . . 4 . . . . . Melee Attacks 84 | . 1 . 3 . . . . . 2 16 . . . . . 2 . 6 5 7 . . 39 . . . 1 2 Impact . | . . . . . . . . . . . . . . . . . . . . . . . . . . . . . Slashing 34 | . . . . . . . . . . 2 . . . . . . . . . . . . 32 . . . . . Piercing . | . . . . . . . . . . . . . . . . . . . . . . . . . . . . . Sneak Attacks 46 | . . . 2 . . . . . 2 14 . . . . . 2 . 6 5 7 . . 7 . . . 1 . Combat Hostiles 8 | . . . . . . . . . 1 1 . . . . . . . . 5 1 . . . . . . . . Follow-up Attacks . | . . . . . . . . . . . . . . . . . . . . . . . . . . . . . Damage Inflicted 138506 | . 1432 131 2724 206 . 1640 . 276 1581 1044 214 . 2091 3431 4184 4523 4103 6126 1068 42005 1622 2552 11155 2610 3366 9189 8633 22600 Guns 72116 | . 1432 131 2358 206 . 1372 . 276 447 916 214 . 2091 3431 4054 4326 3436 6126 1068 11130 . . . 1418 1185 8488 4642 13369 Cannons 1774 | . . . . . . . . . 1134 . . . . . . . 411 . . . . . . . . . . 229 Explosions 62846 | . . . 366 . . 268 . . . . . . . . 130 197 256 . . 30875 1622 2552 9513 1192 2181 701 3991 9002 Melee 1770 | . . . . . . . . . . 128 . . . . . . . . . . . . 1642 . . . . . Ramming . | . . . . . . . . . . . . . . . . . . . . . . . . . . . . . Kinetic 26715 | . . . . . . . . . . . . . 1039 1701 1986 . 3436 6126 1068 11130 . . . . . . . 229 Thermal 85426 | . 1432 131 1293 120 . 719 . 276 1581 916 214 . 1052 1730 1911 2124 37 . . 13991 1622 2552 9513 2610 2474 9189 8577 21362 Explosive 17962 | . . . . . . . . . . . . . . . 130 . . . . 16884 . . . . 892 . 56 . Electromagnetic 6633 | . . . 1431 86 . 921 . . . . . . . . 157 2399 630 . . . . . . . . . . 1009 Impact . | . . . . . . . . . . . . . . . . . . . . . . . . . . . . . Slashing 1770 | . . . . . . . . . . 128 . . . . . . . . . . . . 1642 . . . . . Piercing . | . . . . . . . . . . . . . . . . . . . . . . . . . . . . . Highest Corruption 18 | . . . . . . . . . 3 3 1 . . 1 2 . 4 1 . 4 . . 1 . 5 . 3 18 Average Corruption 3 | . . . . . . . . . 1 2 1 . . 1 1 . 2 1 . 1 . . 1 . 3 . 2 6 Corruption Purged 38 | . . . . . . . . . . 3 1 . . 2 2 . 5 1 . 7 . . 1 . 5 . 3 8 Corruption Blocked . | . . . . . . . . . . . . . . . . . . . . . . . . . . . . . Effects 73 | . . . . . . . . . 3 12 . . . . 1 . . . . 17 . . 3 . 3 . 4 30 Message Errors 15 | . . . . . . . . . 1 5 . . . . . . . . . 4 . . 1 . . . . 4 Matter Fused 17 | . . . . . . . . . . 3 . . . . . . . . . 3 . . 1 . . . 2 8 Heat Flow Errors 5 | . . . . . . . . . . 1 . . . . . . . . . . . . 1 . . . . 3 Energy Discharges 6 | . . . . . . . . . . . . . . . . . . . . 2 . . . . 1 . 1 2 Data Loss (minor) 11 | . . . . . . . . . 2 3 . . . . 1 . . . . 1 . . . . 1 . 1 2 Data Loss (major) 6 | . . . . . . . . . . . . . . . . . . . . 1 . . . . 1 . . 4 Misfires 3 | . . . . . . . . . . . . . . . . . . . . 2 . . . . . . . 1 Alerts 2 | . . . . . . . . . . . . . . . . . . . . 1 . . . . . . . 1 Misdirections 1 | . . . . . . . . . . . . . . . . . . . . . . . . . . . . 1 Weapon Failures 7 | . . . . . . . . . . . . . . . . . . . . 3 . . . . . . . 4 Overload Shots . | . . . . . . . . . . . . . . . . . . . . . . . . . . . . . Overflow Damage 1856 | . . . . . . . . . 53 . . . . . 2 . 37 . . 575 7 122 538 . 229 21 63 209 Projectiles 90 | . . . . . . . . . 53 . . . . . . . 37 . . . . . . . . . . . Explosions 1748 | . . . . . . . . . . . . . . . 2 . . . . 575 7 122 520 . 229 21 63 209 Melee 18 | . . . . . . . . . . . . . . . . . . . . . . . 18 . . . . . Knockbacks . | . . . . . . . . . . . . . . . . . . . . . . . . . . . . . Impact . | . . . . . . . . . . . . . . . . . . . . . . . . . . . . . Kinetic . | . . . . . . . . . . . . . . . . . . . . . . . . . . . . . Secondary . | . . . . . . . . . . . . . . . . . . . . . . . . . . . . . Self-Inflicted Damage 377 | . . . 99 . . 45 . . . . . . . . . . . . . 3 . . . . 176 . 54 . Shots 11 | . . . 4 . . 1 . . . . . . . . . . . . . 1 . . . . 4 . 1 . Rammed . | . . . . . . . . . . . . . . . . . . . . . . . . . . . . . Targets Rammed . | . . . . . . . . . . . . . . . . . . . . . . . . . . . . . Kicked . | . . . . . . . . . . . . . . . . . . . . . . . . . . . . . Crushed . | . . . . . . . . . . . . . . . . . . . . . . . . . . . . . Highest Temperature 404 | . . 3 13 . . 54 . 11 384 225 14 . . 13 . 76 38 . . 404 393 218 338 185 151 108 . . Average Temperature 98 | . . 1 5 . . 12 . 6 152 53 9 . . 8 . 26 21 . . 129 130 59 108 63 63 51 . . Received Heat Transfer 4169 | . 330 . 243 . . 297 . 42 18 129 49 . 198 348 156 88 41 63 10 1112 247 16 76 24 16 69 86 511 Effects 8 | . . . . . . . . . 1 . . . . . . . . . . 7 . . . . . . . . Shutdowns 3 | . . . . . . . . . 1 . . . . . . . . . . 2 . . . . . . . . Energy Bleed 2 | . . . . . . . . . . . . . . . . . . . . 2 . . . . . . . . Interference 3 | . . . . . . . . . . . . . . . . . . . . 3 . . . . . . . . Siege Activations . | . . . . . . . . . . . . . . . . . . . . . . . . . . . . . Martial Activations . | . . . . . . . . . . . . . . . . . . . . . . . . . . . . . Shielding Activations . | . . . . . . . . . . . . . . . . . . . . . . . . . . . . . Robots Disrupted 1 | . . . . . . . . . . . . . . . . . 1 . . . . . . . . . . . Combat Hostiles . | . . . . . . . . . . . . . . . . . . . . . . . . . . . . . Robots Corrupted 10 | . . . . . . 2 . . . . . . . . . 4 1 . . . . . . . . . . 3 Combat Hostiles 10 | . . . . . . 2 . . . . . . . . . 4 1 . . . . . . . . . . 3 Parts Fried 37 | . 2 . 5 . . 3 . . . . . . . . 2 14 2 1 . . . . . . . . . 8 Impact Corruptions . | . . . . . . . . . . . . . . . . . . . . . . . . . . . . . Robots Melted 28 | . . . . . . . . . 1 1 . . . . 1 . . . . 7 1 1 12 2 . . 1 1 Combat Hostiles 27 | . . . . . . . . . 1 1 . . . . 1 . . . . 7 1 . 12 2 . . 1 1 Parts Melted 130 | . 7 . 1 4 . 8 . 1 8 8 1 . 1 5 2 3 . . 1 9 3 6 15 10 3 19 8 7 Heat Transferred 103153 | . 3875 336 2646 333 . 1798 . 535 2169 2270 389 . 1295 1787 2331 2653 50 . . 17437 2160 3280 13118 2875 2240 7481 8802 23293 Parts Sabotaged . | . . . . . . . . . . . . . . . . . . . . . . . . . . . . . Parts Stolen . | . . . . . . . . . . . . . . . . . . . . . . . . . . . . . Parts Stripped . | . . . . . . . . . . . . . . . . . . . . . . . . . . . . . Power Chain Reactions 13 | . . . 6 . . 4 . . . . . . . . . 2 1 . . . . . . . . . . . Alert | -11 -10 -10 -9 -9 -7 -6 -6 -6 -5 -5 -5 -5 -5 -5 -4 -4 -4 -4 -4 -4 -3 -3 -3 -3 -3 -2 -2 -2 ------- Run | Yrd Mat Min Mat Min Zio Pro Fac DSF Fac Ext Cet Arc Hub Gar Fac Gar Fac Upp Upp War Pro Res Gar Res Tes Res Qua Frg Maximum Alert Level 5 | . 2 1 3 1 . . 3 3 1 2 1 . 1 3 3 5 5 . . . . 1 5 4 2 4 4 5 Low Security (%) 14 | 100 55 57 20 59 . . . . 8 33 5 100 61 8 2 . . . . . . 73 . . . . . . Level 1 30 | . 23 42 37 40 . . . . 91 52 94 . 38 31 46 . . . . . . 26 8 . 63 10 . 12 Level 2 18 | . 20 . 23 . . . . 49 . 14 . . . 50 40 15 . . . . . . 13 . 36 42 8 15 Level 3 12 | . . . 19 . . . 100 50 . . . . . 8 10 38 39 . . . . . 7 42 . 32 27 7 Level 4 14 | . . . . . . . . . . . . . . . . 33 52 . . . . . 20 57 . 14 63 20 Level 5 9 | . . . . . . . . . . . . . . . . 12 7 . . . . . 50 . . . . 43 High Security . | . . . . . . . . . . . . . . . . . . . . . . . . . . . . . Max Security . | . . . . . . . . . . . . . . . . . . . . . . . . . . . . . Peak Influence 2202 | . 576 262 903 247 . . 955 719 373 499 367 145 258 764 947 1754 1629 . . . . 330 2021 1328 684 1220 1438 2202 Initial 989 | . . 188 40 78 . . 955 589 326 152 223 99 36 123 347 583 797 . . . . . 212 989 645 319 583 694 Average 689 | . 198 188 408 182 . . 955 662 276 276 285 102 139 476 431 1128 1152 . . . . 100 1421 1113 445 729 1160 1341 Influence Increases 24444 | . 907 74 1308 224 . 330 900 140 567 827 284 86 485 661 1298 1171 1262 646 159 4268 195 431 1869 529 719 1201 1185 2718 Destroy 0b10 Robot/C 14360 | . 560 60 840 180 . 220 . 100 160 480 160 40 240 480 540 640 540 580 120 3440 160 220 1060 260 320 880 500 1580 Destroy 0b10 Robot/NC 545 | . 25 . 45 . . 15 . . 10 10 10 . 10 10 60 5 80 . . 85 5 25 30 20 25 15 30 30 Destroy Leader 1610 | . 118 10 182 30 . 20 . 10 52 54 . . 74 40 118 40 106 50 30 . 30 46 60 66 50 186 64 174 Allied During Kill 483 | . . . . . . . . . 1 156 73 20 . 2 28 20 44 16 9 68 . . 41 5 . . . . Trap Triggered on 0b10 60 | . 20 . . . . . . . 20 20 . . . . . . . . . . . . . . . . . . Successful Hack 321 | . 9 4 21 5 . . . . 54 30 . . 33 . 43 10 . . . . . 8 4 20 34 . . 46 Select Force Hacks 280 | . 160 . 120 . . . . . . . . . . . . . . . . . . . . . . . . . Disable Machine 801 | . . . 9 9 . . . . 9 27 . 9 45 . 72 . 243 . . . . 18 9 9 99 36 63 144 Anti-Garrison Action 550 | . . . . . . . . . . . . . . 50 . 200 . . . . . . 300 . . . . . Destroy Structure 2059 | . . . 16 . . . . . 6 50 26 2 68 64 122 91 144 . . . . 84 335 104 176 84 333 354 Advance Influence 900 | . . . . . . . 900 . . . . . . . . . . . . . . . . . . . . . Partial Spotted 375 | . 15 . 15 . . . . . 60 . . . 15 15 90 15 15 . . . . 15 . 30 . . 45 45 Lose Combat Pursuer 2100 | . . . 60 . . 75 . 30 195 . 15 15 . . 225 150 90 . . 675 . 15 30 15 15 . 150 345 Influence Decreases 22262 | . 334 525 1192 250 212 230 45 376 923 731 446 258 409 98 1117 362 1397 1145 581 2358 2803 111 168 1232 1383 665 957 1954 Entered New Map 12012 | . . 385 82 160 212 . 45 366 393 211 236 198 89 78 417 362 957 725 311 698 2608 . 108 1032 673 335 607 724 Time Decay 7970 | . 334 140 350 90 . 230 . . 480 310 150 20 300 . 700 . 400 420 270 1420 195 111 . 180 410 330 350 780 Lost Part 40 | . . . . . . . . 10 . 10 . . . . . . . . . 20 . . . . . . . . Lost Ally 740 | . . . 10 . . . . . 50 200 60 40 20 20 . . 40 . . 220 . . 60 20 . . . . Purge Threat 1500 | . . . 750 . . . . . . . . . . . . . . . . . . . . . 300 . . 450 Squads Dispatched 102 | . 11 1 10 . . . . 1 7 2 . . 3 . 11 . 7 . . . . 4 . 5 8 2 11 19 Investigation 37 | . 11 1 9 . . . . . 1 1 . . . . 1 . 1 . . . . 2 . 2 1 1 1 5 Extermination 21 | . . . . . . . . . 4 . . . 1 . 3 . 2 . . . . . . 1 4 . 2 4 Reinforcement 30 | . . . 1 . . . . 1 2 1 . . 2 . 5 . 2 . . . . 1 . 1 3 1 5 5 Assault 10 | . . . . . . . . . . . . . . . 1 . 2 . . . . . . 1 . . 2 4 Garrison 4 | . . . . . . . . . . . . . . . 1 . . . . . . 1 . . . . 1 1 Intercept . | . . . . . . . . . . . . . . . . . . . . . . . . . . . . . Searches Triggered . | . . . . . . . . . . . . . . . . . . . . . . . . . . . . . Construction Impeded 5 | . . . . . . . . . . . . . . . 1 . 1 . . . . . . . 1 . 1 1 Haulers Reinforced 4 | . . . . . . . . . . . . . . . 1 . 1 . . . . 1 . . . . 1 . Active Scanning Responses . | . . . . . . . . . . . . . . . . . . . . . . . . . . . . . Cargo Convoy Interrupts 1 | . . . . . . . . . 1 . . . . . . . . . . . . . . . . . . . Stealth | -11 -10 -10 -9 -9 -7 -6 -6 -6 -5 -5 -5 -5 -5 -5 -4 -4 -4 -4 -4 -4 -3 -3 -3 -3 -3 -2 -2 -2 --------- Run | Yrd Mat Min Mat Min Zio Pro Fac DSF Fac Ext Cet Arc Hub Gar Fac Gar Fac Upp Upp War Pro Res Gar Res Tes Res Qua Frg Distress Signals 30 | . 1 . 3 . . . . . 2 2 1 . 1 . 1 . 1 . . 2 . 2 . . 2 8 2 2 Communications Jammed 67 | . . . . . . . . . . 35 11 . 9 . 11 . 1 . . . . . . . . . . . Distress Signals 65 | . . . . . . . . . . 35 11 . 8 . 10 . 1 . . . . . . . . . . . Times Spotted 1077 | . 40 18 57 10 . 25 . 7 33 27 10 5 16 26 69 45 30 28 5 284 8 17 50 19 20 60 44 124 Peak Tracking Total 18 | . 4 5 8 3 . 4 . 5 9 4 5 5 4 3 18 4 5 5 2 17 3 8 11 5 5 11 9 15 Tactical Retreats 68 | . . 4 2 1 . 4 . 2 7 . 1 1 . . 6 6 3 . . 17 . 1 2 1 1 . 3 6 Traps | -11 -10 -10 -9 -9 -7 -6 -6 -6 -5 -5 -5 -5 -5 -5 -4 -4 -4 -4 -4 -4 -3 -3 -3 -3 -3 -2 -2 -2 ------- Run | Yrd Mat Min Mat Min Zio Pro Fac DSF Fac Ext Cet Arc Hub Gar Fac Gar Fac Upp Upp War Pro Res Gar Res Tes Res Qua Frg Traps Triggered 50 | . . . . . . . . . 2 . . . 1 7 2 7 2 . . . . 1 10 2 1 . 2 13 Indirectly . | . . . . . . . . . . . . . . . . . . . . . . . . . . . . . Trap Hack Attempts 72 | . 25 . 12 . . . . 3 . 32 . . . . . . . . . . . . . . . . . . Triggered . | . . . . . . . . . . . . . . . . . . . . . . . . . . . . . Disarmed 3 | . 3 . . . . . . . . . . . . . . . . . . . . . . . . . . . Reprogrammed 12 | . 2 . 2 . . . . . . 8 . . . . . . . . . . . . . . . . . . Reused 12 | . 2 . . . . 6 . . 2 2 . . . . . . . . . . . . . . . . . . Traps Extracted 9 | . 2 . 2 . . . . . . 5 . . . . . . . . . . . . . . . . . . Installed 12 | . 2 . . . . 6 . . 4 . . . . . . . . . . . . . . . . . . . Triggered 12 | . 2 . . . . 6 . . 2 2 . . . . . . . . . . . . . . . . . . Most Traps Carried 4 | . 2 . 2 2 2 4 4 4 4 4 4 4 4 . . . . . . . . . . . . . . . Machines | -11 -10 -10 -9 -9 -7 -6 -6 -6 -5 -5 -5 -5 -5 -5 -4 -4 -4 -4 -4 -4 -3 -3 -3 -3 -3 -2 -2 -2 ---------- Run | Yrd Mat Min Mat Min Zio Pro Fac DSF Fac Ext Cet Arc Hub Gar Fac Gar Fac Upp Upp War Pro Res Gar Res Tes Res Qua Frg Machines Disabled 124 | . . . 1 1 . . . . 1 3 1 1 5 2 8 4 27 2 2 6 . 2 8 1 12 4 11 22 Max in Single Turn 8 | . . . 1 1 . . . . 1 1 . . 2 1 2 1 8 1 1 1 . 2 1 1 2 1 2 2 Garrison Access 9 | . . . . . . . . . 1 . . . 1 . 1 . 1 . . . . . . . 1 2 1 1 Garrison Relay 10 | . . . . . . . . . . . . . . 1 . 4 . . . . . . 5 . . . . . Machines Repaired . | . . . . . . . . . . . . . . . . . . . . . . . . . . . . . Machines Dismantled 7 | . . . . . . . . . . 3 . . . . . . . . . 1 . . . . . 3 . . Machines Sabotaged 2 | . 2 . . . . . . . . . . . . . . . . . . . . . . . . . . . Overloaded Fab Kills . | . . . . . . . . . . . . . . . . . . . . . . . . . . . . . Hacking | -11 -10 -10 -9 -9 -7 -6 -6 -6 -5 -5 -5 -5 -5 -5 -4 -4 -4 -4 -4 -4 -3 -3 -3 -3 -3 -2 -2 -2 --------- Run | Yrd Mat Min Mat Min Zio Pro Fac DSF Fac Ext Cet Arc Hub Gar Fac Gar Fac Upp Upp War Pro Res Gar Res Tes Res Qua Frg Machines Accessed 115 | . 10 3 16 1 . . 1 . 12 12 . 1 8 2 10 2 7 1 1 . . 5 2 2 7 . 2 10 Terminals 80 | . 7 1 10 1 . . 1 . 10 12 . . 6 2 5 2 4 . . . . 3 2 1 6 . 1 6 Fabricators 11 | . . . . . . . . . 1 . . . . . 3 . 2 . . . . 1 . 1 . . . 3 Repair Stations 3 | . 1 . 2 . . . . . . . . . . . . . . . . . . . . . . . . . Recycling Units 4 | . 2 . 2 . . . . . . . . . . . . . . . . . . . . . . . . . Scanalyzers 2 | . . . 2 . . . . . . . . . . . . . . . . . . . . . . . . . Garrison Access 10 | . . . . . . . . . 1 . . . 2 . 2 . 1 . . . . 1 . . 1 . 1 1 Total Hacks 308 | . 29 7 46 2 . . 1 . 35 22 . 25 24 3 26 3 17 1 1 . . 12 4 4 19 . 4 23 Successful 197 | . 22 7 33 2 . . 1 . 23 12 . 25 13 2 15 2 5 1 1 . . 7 2 3 7 . 2 12 Failed 109 | . 7 . 12 . . . . . 12 10 . . 10 1 11 1 12 . . . . 5 2 1 12 . 2 11 Catastrophic 10 | . 1 . . . . . . . . . . . . . 4 . 1 . . . . . . . 1 . . 3 Database Lockouts 2 | . . . 1 . . . . . . . . . 1 . . . . . . . . . . . . . . . Manual 148 | . 22 3 38 3 . . . . 21 2 1 . 15 . 9 . 11 . . . . 2 . . 10 . 3 8 Terminals 221 | . 26 5 40 2 . . 1 . 30 22 . . 21 3 11 3 12 . . . . 7 4 1 17 . 3 13 Fabricators 33 | . . . . . . . . . 4 . . . . . 10 . 4 . . . . 4 . 3 . . . 8 Repair Stations 3 | . 1 . 2 . . . . . . . . . . . . . . . . . . . . . . . . . Recycling Units 4 | . 2 . 2 . . . . . . . . . . . . . . . . . . . . . . . . . Scanalyzers 2 | . . . 2 . . . . . . . . . . . . . . . . . . . . . . . . . Garrison Access 16 | . . . . . . . . . 1 . . . 3 . 5 . 1 . . . . 1 . . 2 . 1 2 Terminal Hacks 112 | . 12 6 12 2 . . 1 . 11 10 . 25 7 2 5 2 2 1 1 . . 2 2 1 4 . . 4 Record 28 | . . 2 . . . . . . . . . 25 . . 1 . . . . . . . . . . . . . Part Schematic 9 | . 1 . . 2 . . . . 2 . . . 1 . 2 . . . . . . . . . . . . 1 Robot Schematic 1 | . . . . . . . . . . . . . . . 1 . . . . . . . . . . . . . Robot Analysis 12 | . 5 . 4 . . . . . . . . . 3 . . . . . . . . . . . . . . . Prototype ID Bank 6 | . 1 . 2 . . . . . . . . . 1 . . . . . . . . . . . 2 . . . Open Door 15 | . . 2 . . . . . . 1 8 . . . 1 . . . 1 1 . . . 1 . . . . . Open DSF 2 | . . . . . . . 1 . 1 . . . . . . . . . . . . . . . . . . . Level Access Points 2 | . . . . . . . . . . . . . 1 . 1 . . . . . . . . . . . . . Branch Access Points 3 | . . . . . . . . . 1 1 . . . . . . 1 . . . . . . . . . . . Emergency Access Points 4 | . . . . . . . . . . . . . 1 1 . 1 . . . . . . 1 . . . . . Machine Index 1 | . . . . . . . . . 1 . . . . . . . . . . . . . . . . . . . Terminal Index 1 | . . . . . . . . . . . . . . . . . 1 . . . . . . . . . . . Fabricator Index 2 | . . . . . . . . . 1 . . . . . . . . . . . . . . 1 . . . . Garrison Index 1 | . . . . . . . . . 1 . . . . . . . . . . . . . . . . . . . Alert Level 6 | . 1 . . . . . . . 3 1 . . . . . . . . . . . 1 . . . . . . Unreport Threat 10 | . . . 5 . . . . . . . . . . . . . . . . . . . . . 2 . . 3 Locate Traps 4 | . 3 . 1 . . . . . . . . . . . . . . . . . . . . . . . . . Disarm Traps 1 | . . 1 . . . . . . . . . . . . . . . . . . . . . . . . . . Transport Status 1 | . 1 . . . . . . . . . . . . . . . . . . . . . . . . . . . Hauler Manifests 1 | . . . . . . . . . . . . . . . . . . . . . . 1 . . . . . . Zone Layout 1 | . . 1 . . . . . . . . . . . . . . . . . . . . . . . . . . Security Stations 1 | . . . . . . . . . . . . . . . . 1 . . . . . . . . . . . . Fabricator Hacks 19 | . . . . . . . . . 2 . . . . . 7 . 1 . . . . 2 . 2 . . . 5 Network Status 2 | . . . . . . . . . . . . . . . 1 . 1 . . . . . . . . . . . Load Schematic 9 | . . . . . . . . . 1 . . . . . 3 . . . . . . 1 . 1 . . . 3 Build 8 | . . . . . . . . . 1 . . . . . 3 . . . . . . 1 . 1 . . . 2 Repair Station Hacks . | . . . . . . . . . . . . . . . . . . . . . . . . . . . . . Recycling Unit Hacks . | . . . . . . . . . . . . . . . . . . . . . . . . . . . . . Scanalyzer . | . . . . . . . . . . . . . . . . . . . . . . . . . . . . . Garrison Access Hacks 10 | . . . . . . . . . 1 . . . 2 . 2 . 1 . . . . 1 . . 1 . 1 1 Unlock Access 3 | . . . . . . . . . . . . . 1 . 1 . . . . . . 1 . . . . . . Seal Access 7 | . . . . . . . . . 1 . . . 1 . 1 . 1 . . . . . . . 1 . 1 1 Unauthorized Hacks 56 | . 10 1 21 . . . . . 9 2 . . 4 . 1 . 1 . . . . 2 . . 2 . 1 2 Terminals 45 | . 7 1 15 . . . . . 8 2 . . 4 . . . 1 . . . . 2 . . 2 . 1 2 Assimilate 5 | . . . 2 . . . . . 2 1 . . . . . . . . . . . . . . . . . . Botnet 26 | . 1 1 7 . . . . . 5 1 . . 4 . . . 1 . . . . 2 . . 2 . . 2 Disrupt 6 | . 1 . 4 . . . . . . . . . . . . . . . . . . . . . . . 1 . Operators 3 | . . . 2 . . . . . 1 . . . . . . . . . . . . . . . . . . . Sabotage 5 | . 5 . . . . . . . . . . . . . . . . . . . . . . . . . . . Fabricators 2 | . . . . . . . . . 1 . . . . . 1 . . . . . . . . . . . . . Prioritize 1 | . . . . . . . . . 1 . . . . . . . . . . . . . . . . . . . Haulers 1 | . . . . . . . . . . . . . . . 1 . . . . . . . . . . . . . Repair Stations 3 | . 1 . 2 . . . . . . . . . . . . . . . . . . . . . . . . . Patch 3 | . 1 . 2 . . . . . . . . . . . . . . . . . . . . . . . . . Recycling Units 4 | . 2 . 2 . . . . . . . . . . . . . . . . . . . . . . . . . Tunnel 4 | . 2 . 2 . . . . . . . . . . . . . . . . . . . . . . . . . Scanalyzers 2 | . . . 2 . . . . . . . . . . . . . . . . . . . . . . . . . Extract 2 | . . . 2 . . . . . . . . . . . . . . . . . . . . . . . . . Garrison Access . | . . . . . . . . . . . . . . . . . . . . . . . . . . . . . Data Cores Recovered 3 | . . . . . . . . . 1 . . . . . 1 . . . . . . 1 . . . . . . Used 1 | . . . . . . . . . . . . . . . . . . . . . . 1 . . . . . . Hacking Detections 79 | . 5 . 7 1 . . . . 8 8 . . 6 2 10 2 6 . . . . 5 1 1 6 . 1 10 Full Trace Events 17 | . 2 . 2 . . . . . 1 1 . . . . 1 . 1 . . . . 1 1 1 . . 1 5 Feedback Events 2 | . . . . . . . . . . . . . . . . . . . . . . . . . . . . 2 Corruption 2 | . . . . . . . . . . . . . . . . . . . . . . . . . . . . 2 Feedback Blocked . | . . . . . . . . . . . . . . . . . . . . . . . . . . . . . Robot Schematics Acquired 4 | . . . . . . . . . . . . . . . 1 . . . . . . . . . . . . 3 Robots Built 4 | . . . . . . . . . . . . . . . 4 . . . . . . . . . . . . . Authchips 2 | . . . . . . . . . . . . . . . 2 . . . . . . . . . . . . . Time 168 | . . . . . . . . . . . . . . . 168 . . . . . . . . . . . . . Total Robot Build Rating 24 | . . . . . . . . . . . . . . . 24 . . . . . . . . . . . . . Part Schematics Acquired 26 | . 1 . 3 2 . . . . 2 . . . 1 . 2 . . . . . . . . . . . 6 9 Parts Built 10 | . . . . . . . . . 2 . . . . . 2 . . . . . . 2 . 2 . . . 2 Authchips 1 | . . . . . . . . . 1 . . . . . . . . . . . . . . . . . . . Time 318 | . . . . . . . . . 53 . . . . . 117 . . . . . . 39 . 31 . . . 78 Total Part Build Rating 58 | . . . . . . . . . 12 . . . . . 14 . . . . . . 14 . 4 . . . 14 Parts Repaired . | . . . . . . . . . . . . . . . . . . . . . . . . . . . . . Time . | . . . . . . . . . . . . . . . . . . . . . . . . . . . . . Parts Recycled . | . . . . . . . . . . . . . . . . . . . . . . . . . . . . . Recycled Matter . | . . . . . . . . . . . . . . . . . . . . . . . . . . . . . Retrieved Matter . | . . . . . . . . . . . . . . . . . . . . . . . . . . . . . Retrieved Components . | . . . . . . . . . . . . . . . . . . . . . . . . . . . . . Parts Scanalyzed . | . . . . . . . . . . . . . . . . . . . . . . . . . . . . . Part Schematics Acquired . | . . . . . . . . . . . . . . . . . . . . . . . . . . . . . Parts Damaged . | . . . . . . . . . . . . . . . . . . . . . . . . . . . . . Bothacking | -11 -10 -10 -9 -9 -7 -6 -6 -6 -5 -5 -5 -5 -5 -5 -4 -4 -4 -4 -4 -4 -3 -3 -3 -3 -3 -2 -2 -2 ------------ Run | Yrd Mat Min Mat Min Zio Pro Fac DSF Fac Ext Cet Arc Hub Gar Fac Gar Fac Upp Upp War Pro Res Gar Res Tes Res Qua Frg Used RIF Installer . | . . . . . . . . . . . . . . . . . . . . . . . . . . . . . Robots Hacked 3 | . . . 1 . . . . . . . . . . . . . . . . . . . . . . . 1 1 Non-combat 2 | . . . 1 . . . . . . . . . . . . . . . . . . . . . . . 1 . Combat 1 | . . . . . . . . . . . . . . . . . . . . . . . . . . . . 1 Robot Hacks Applied 4 | . . . 2 . . . . . . . . . . . . . . . . . . . . . . . 1 1 parse_system 3 | . . . 2 . . . . . . . . . . . . . . . . . . . . . . . . 1 no_distress 1 | . . . . . . . . . . . . . . . . . . . . . . . . . . . 1 . Relay Couplers Released 19 | . . . . . . . . . . . . . . 2 . 7 . . . . . . 8 . 1 1 . . Machine Destruction 19 | . . . . . . . . . . . . . . 2 . 7 . . . . . . 8 . 1 1 . . Fabnet Peak Effective % . | . . . . . . . . . . . . . . . . . . . . . . . . . . . . . Robots Rewired 27 | . . . . . . . . . 2 11 . . . . . 2 . 2 . 6 . . 4 . . . . . Allies Hacked 1 | . . . . . . . . . . . . . . . . . . . 1 . . . . . . . . . Hacks Repelled . | . . . . . . . . . . . . . . . . . . . . . . . . . . . . . Allies | -11 -10 -10 -9 -9 -7 -6 -6 -6 -5 -5 -5 -5 -5 -5 -4 -4 -4 -4 -4 -4 -3 -3 -3 -3 -3 -2 -2 -2 -------- Run | Yrd Mat Min Mat Min Zio Pro Fac DSF Fac Ext Cet Arc Hub Gar Fac Gar Fac Upp Upp War Pro Res Gar Res Tes Res Qua Frg Total Allies 57 | . . . 1 . . . . . 3 29 5 . . 1 4 2 . 2 . 6 . . 4 . . . . . Largest Group 18 | . . . 1 . . . . . 1 18 17 16 1 1 4 2 2 2 2 6 . . 3 1 . . . . Highest-Rated Group 981 | . . . 10 . . . . . 49 697 981 818 39 46 216 238 238 94 94 322 . . 143 119 . . . . Highest-Rated Ally 159 | . . . 10 . . . . . 49 159 159 96 39 46 54 119 119 47 47 148 . . 119 119 . . . . Initial Warlord ECA Mod 72 | . . . . . . . . . . . . . . . . . 4 4 4 4 3 3 3 10 10 9 9 9 Total Orders 6 | . . . . . . . . . . . . . . . . . . . . 6 . . . . . . . . STAY 4 | . . . . . . . . . . . . . . . . . . . . 4 . . . . . . . . ROAM 1 | . . . . . . . . . . . . . . . . . . . . 1 . . . . . . . . FOLLOW 1 | . . . . . . . . . . . . . . . . . . . . 1 . . . . . . . . Ally Attacks 494 | . . . . . . . . . 7 208 82 27 4 4 21 5 18 . 9 66 . . 37 6 . . . . Total Damage 13146 | . . . . . . . . . 113 3534 1621 918 30 155 1043 136 1982 . 315 2066 . . 893 340 . . . . Kills 85 | . . . . . . . . . 1 22 10 2 1 1 7 1 15 . 2 13 . . 6 4 . . . . Allies Corrupted 1 | . . . . . . . . . . . . . . . . . . . . . . . 1 . . . . . Allies Melted 3 | . . . . . . . . . . . . . . . . . 1 . . 1 . . . . . 1 . . Intel | -11 -10 -10 -9 -9 -7 -6 -6 -6 -5 -5 -5 -5 -5 -5 -4 -4 -4 -4 -4 -4 -3 -3 -3 -3 -3 -2 -2 -2 ------- Run | Yrd Mat Min Mat Min Zio Pro Fac DSF Fac Ext Cet Arc Hub Gar Fac Gar Fac Upp Upp War Pro Res Gar Res Tes Res Qua Frg Active Infowar (turns) 14117 | . 609 297 707 192 307 546 19 99 911 614 316 57 609 797 1406 572 672 846 556 3016 475 369 124 . 1 . . . Optics 6523 | . . . 382 192 307 546 19 99 911 614 316 57 609 797 1406 267 . . . . . . . . 1 . . . Sensors 7558 | . . . . 26 305 252 . . 1 95 259 . 70 39 377 149 599 846 556 3016 475 369 124 . . . . . Terrain 4842 | . 609 293 707 192 307 546 19 99 910 469 316 57 318 . . . . . . . . . . . . . . . Structural 1606 | . . 266 707 192 307 134 . . . . . . . . . . . . . . . . . . . . . . Traps 4964 | . . . . . . 198 19 99 911 614 316 57 609 162 1406 340 233 . . . . . . . . . . . Cloaking 1297 | . . . . . . . . . 136 469 316 57 317 . . . . . . 2 . . . . . . . . Jamming 4579 | . . . . . . . . . 1 614 316 57 609 797 1029 114 421 621 . . . . . . . . . . ECM 641 | . 154 272 27 166 . 22 . . . . . . . . . . . . . . . . . . . . . . Robot Analysis Total 12 | . 5 . 4 . . . . . . . . . 3 . . . . . . . . . . . . . . . Derelict Logs Recovered 15 | . . 3 . 2 2 2 . . . . . . . . . . . 3 3 . . . . . . . . . Drone Launches 10 | . . . . . . . . . . . . . . . . . . . . 10 . . . . . . . . Drone Recoveries . | . . . . . . . . . . . . . . . . . . . . . . . . . . . . . Exploration | -11 -10 -10 -9 -9 -7 -6 -6 -6 -5 -5 -5 -5 -5 -5 -4 -4 -4 -4 -4 -4 -3 -3 -3 -3 -3 -2 -2 -2 ------------- Run | Yrd Mat Min Mat Min Zio Pro Fac DSF Fac Ext Cet Arc Hub Gar Fac Gar Fac Upp Upp War Pro Res Gar Res Tes Res Qua Frg Turns Passed 19796 | 24 815 297 707 192 307 546 19 99 969 623 316 57 609 797 1406 851 813 846 556 3031 475 369 929 360 836 660 710 1577 Spaces Moved 31232 | 41 1239 694 1077 397 810 910 50 180 1980 757 487 107 1031 938 1939 930 1192 1496 1264 4621 1039 655 1212 701 1408 1061 868 2148 Core 93 | 41 46 . . . . . . . . . . . . 2 1 . 1 . . . . . . . . . . 2 Treads . | . . . . . . . . . . . . . . . . . . . . . . . . . . . . . Legs . | . . . . . . . . . . . . . . . . . . . . . . . . . . . . . Wheels . | . . . . . . . . . . . . . . . . . . . . . . . . . . . . . Hover 8819 | . . . . . . . . . . . . . . . . . . . . 430 1039 655 1212 701 1408 1061 868 1445 Flight 22320 | . 1193 694 1077 397 810 910 50 180 1980 757 487 107 1031 936 1938 930 1191 1496 1264 4191 . . . . . . . 701 Fastest Speed 8 | 50 37 37 37 37 37 37 37 30 30 34 34 34 34 37 37 31 26 26 31 26 41 39 39 39 39 39 39 8 Average Speed 34 | 50 37 37 37 37 37 37 37 33 34 34 34 34 36 37 37 33 31 31 31 29 41 40 39 39 39 39 39 31 Slowest Speed 150 | 50 50 37 37 37 37 37 37 110 39 34 34 34 37 100 100 37 100 37 31 49 41 41 39 39 39 39 119 150 Overloaded Moves 117 | . . . . . . . . . . . . . . . . . 10 15 . 31 . . . . . . . 61 Propulsion Burnouts . | . . . . . . . . . . . . . . . . . . . . . . . . . . . . . Robots Hopped 228 | . 10 3 18 8 . . . 2 26 8 2 2 20 1 71 . 11 . . 41 . . . . . . . 5 Potential Cave-ins 10 | . . . . . . . . . . . . . . . . . . . . 3 . 2 . 5 . . . . Cave-ins Triggered . | . . . . . . . . . . . . . . . . . . . . . . . . . . . . . Exploration Rate (%) 71 | 3 100 94 93 69 86 90 2 94 56 80 76 86 81 83 42 96 25 99 98 92 98 18 97 23 93 38 87 62 Regions Visited 28 Branch Regions 15 Pre-discovered Areas 13 | . 2 2 2 1 2 1 . . . . . . . . . . . 2 1 . . . . . . . . . Known Exits Taken 21 | . . . 1 1 1 1 1 . 1 1 1 1 1 . 1 . 1 1 1 1 1 1 . 1 1 1 1 . Unknown Exits Taken 3 | 1 1 1 . . . . . . . . . . . . . . . . . . . . . . . . . . Scrap Searched 20 | . . 2 . 1 2 1 . . . . . . . . . . . 5 4 . 5 . . . . . . . Spaces Dug 181 | . . . . . . . . . 1 . . . 14 . 17 . 3 . 5 74 . 4 . 10 28 . 18 7 Terrain Destroyed 1870 | . . . 15 . . 28 . . 1 . . . 30 4 77 4 31 61 31 751 34 77 177 77 150 35 165 122 Melee . | . . . . . . . . . . . . . . . . . . . . . . . . . . . . . Projectile 355 | . . . . . . . . . 1 . . . 30 4 51 . 30 61 31 53 . . . . 8 23 26 37 AOE 1514 | . . . 15 . . 28 . . . . . . . . 26 4 . . . 698 34 77 177 77 142 12 139 85 Terrain Rammed . | . . . . . . . . . . . . . . . . . . . . . . . . . . . . . Walls Destroyed . | . . . . . . . . . . . . . . . . . . . . . . . . . . . . . Machines Disabled . | . . . . . . . . . . . . . . . . . . . . . . . . . . . . . Actions | -11 -10 -10 -9 -9 -7 -6 -6 -6 -5 -5 -5 -5 -5 -5 -4 -4 -4 -4 -4 -4 -3 -3 -3 -3 -3 -2 -2 -2 --------- Run | Yrd Mat Min Mat Min Zio Pro Fac DSF Fac Ext Cet Arc Hub Gar Fac Gar Fac Upp Upp War Pro Res Gar Res Tes Res Qua Frg Total 37524 | 42 1458 720 1210 412 816 1039 49 204 2194 1037 625 124 1130 1279 2440 1343 1537 1740 1398 5716 1070 731 1529 756 1646 1242 1181 2856 Wait 2947 | . 66 1 16 5 1 32 . 10 158 120 107 19 12 72 365 114 223 93 82 455 2 38 123 29 168 65 213 358 Move 30780 | 40 1219 687 1041 380 809 909 49 175 1929 740 482 102 991 935 1815 929 1171 1495 1263 4544 1038 654 1211 700 1407 1060 867 2138 Hop 196 | . 9 3 17 8 . . . 2 24 8 2 2 19 1 52 . 9 . . 35 . . . . . . . 5 Pick Up 89 | . 2 1 1 2 . . . 2 1 3 1 1 1 3 7 3 4 . 2 24 . 3 3 1 . 5 6 13 Fast Attach 100 | 2 8 4 2 . . 2 . 3 7 2 1 . 4 1 7 4 7 1 . 12 1 1 2 2 7 6 7 7 Attach 35 | . 2 . 1 . . 1 . . 2 1 . . 1 1 3 2 1 . . 6 . . 1 . . 4 4 5 Detach 12 | . 1 . . . . . . 1 . . . . . 1 . 1 2 . . 2 . . 1 . . . . 3 Swap 149 | . 2 3 3 1 4 5 . 1 13 8 2 . 2 2 11 5 3 1 . 35 . 5 5 . 18 5 2 13 Drop 142 | . . 7 1 1 2 2 . . 4 6 2 . 5 4 7 6 6 1 2 34 . 2 8 1 7 8 7 19 Fire 1598 | . 96 8 78 13 . 65 . 7 38 25 11 . 62 90 109 139 78 111 31 338 13 19 77 15 28 4 31 112 Melee 84 | . 1 . 3 . . . . . 2 16 . . . . . 2 . 6 5 7 . . 39 . . . 1 2 Ram . | . . . . . . . . . . . . . . . . . . . . . . . . . . . . . Kick . | . . . . . . . . . . . . . . . . . . . . . . . . . . . . . Crush . | . . . . . . . . . . . . . . . . . . . . . . . . . . . . . Escape Stasis 292 | . . . . . . . . . 6 . . . 18 101 16 62 . . . . . . 20 . . . . 69 Rewire 5 | . . . . . . . . . . . . . . . 1 . . . . . . . 4 . . . . . Trap 84 | . 27 . 12 . . 6 . 3 4 32 . . . . . . . . . . . . . . . . . . Miscellaneous 1011 | . 25 6 35 2 . 17 . . 6 76 17 . 15 68 47 76 33 32 13 224 16 9 35 8 11 85 43 112 Route ------- -11/Scrapyard -10/Materials (discovered 5 exits: *Mat x3 / *Min / [*Sub]) -10/Mines (discovered 3 exits: *Mat x2 / [*Exi]) -9/Materials (discovered 4 exits: *Mat x3 / *Min) -9/Mines (discovered 2 exits: *Mat / *Zio) -7/Zion -6/Proximity Caves -6/Factory -6/DSF -5/Factory (discovered 7 exits: *Fac x3 / *Upp x2 / *Ext x2) -5/Extension (discovered 3 exits: *Fac x2 / *Cet) -5/Cetus (discovered 3 exits: *Fac x2 / *Arc) -5/Archives (discovered 3 exits: *Fac / *Hub x2) -5/Hub_04(d) (discovered 5 exits: *Fac x4 / Gar) -5/Garrison (discovered 3 exits: *Fac x3) -4/Factory (discovered 6 exits: *Res x4 / *Upp / Gar) -4/Garrison (discovered 3 exits: *Fac x3) -4/Factory (discovered 3 exits: *Upp x2 / Arm) -4/Upper Caves -4/Upper Caves (discovered 2 exits: *Res / *War) -4/Warlord -3/Proximity Caves -3/Research (discovered 2 exits: Tes / Gar) -3/Garrison (discovered 3 exits: *Res x3) -3/Research (discovered 2 exits: *Res / *Tes) -3/Testing -2/Research (discovered 2 exits: *Qua x2) -2/Quarantine (discovered 2 exits: *Sec / *Frg) -2/Protoforge History --------- Turn | Location | Event 3 | -11/Scrapyard | Discovered new exit (range 16) 6 | -11/Scrapyard | Upgraded with Power slot (x1) 6 | -11/Scrapyard | Upgraded with Propulsion slot (x1) 6 | -11/Scrapyard | Upgraded with Utility slot (x1) 6 | -11/Scrapyard | Upgraded with Weapon slot (x1) 25 | -11/Scrapyard | Entered Materials 26 | -10/Materials | Met a group of wandering Federalists 145 | -10/Materials | Discovered new exit (range 13) 163 | -10/Materials | Discovered new exit (range 15) 198 | -10/Materials | Discovered new exit (range 16) 277 | -10/Materials | Discovered new exit (range 15) 394 | -10/Materials | Discovered new exit (range 13) 468 | -10/Materials | Build established: Hacker-Mutant 473 | -10/Materials | Reached level 2 546 | -10/Materials | Upgraded with Utility slot (x1) 546 | -10/Materials | Upgraded with Weapon slot (x1) 659 | -10/Materials | Reached level 3 687 | -10/Materials | Upgraded with Utility slot (x1) 840 | -10/Materials | Entered Mines 842 | -10/Mines | Reached level 4 845 | -10/Mines | Assembled infested the area 870 | -10/Mines | Upgraded with Utility slot (x1) 883 | -10/Mines | Met a Derelict shopkeep closing up shop 905 | -10/Mines | Deemed a non-threat by the Exiles lab entrance 905 | -10/Mines | Discovered new exit (range 6) 958 | -10/Mines | Learned Materials garrison access intel 965 | -10/Mines | Learned Materials garrison access intel 972 | -10/Mines | Learned location of Zion (-7) 983 | -10/Mines | Found the Drone Emporium 984 | -10/Mines | Found Prototype Device 984 | -10/Mines | Identified Bomb Drone Bay 1037 | -10/Mines | Discovered new exit (range 8) 1063 | -10/Mines | Discovered new exit (range 8) 1064 | -10/Mines | Learned location of Storage (-7) 1137 | -10/Mines | Entered Materials 1139 | -9/Materials | Reached level 5 1189 | -9/Materials | Discovered new exit (range 14) 1279 | -9/Materials | Reached level 6 1283 | -9/Materials | Discovered new exit (range 8) 1329 | -9/Materials | Destroyed 7 combat bots 1422 | -9/Materials | Build established: Hacker-Ninja 1424 | -9/Materials | Discovered new exit (range 11) 1428 | -9/Materials | Reached level 7 1462 | -9/Materials | Upgraded with Utility slot (x1) 1476 | -9/Materials | Destroyed 7 combat bots 1522 | -9/Materials | Central database locked down 1562 | -9/Materials | Reached level 8 1595 | -9/Materials | Destroyed 10 combat bots 1606 | -9/Materials | Discovered new exit (range 18) 1692 | -9/Materials | Destroyed 7 combat bots 1817 | -9/Materials | Upgraded with Utility slot (x1) 1844 | -9/Materials | Identified exit to Mines 1844 | -9/Materials | Entered Mines 1845 | -9/Mines | Met a Derelict testing a Signal Generator 1846 | -9/Mines | Reached level 9 1846 | -9/Mines | Found Signal Generator 1850 | -9/Mines | Learned location of 1 exit from Proximity Caves 1853 | -9/Mines | Learned location of Recycling (-7) 1903 | -9/Mines | Discovered new exit (range 15) 1909 | -9/Mines | Identified exit to Materials 1917 | -9/Mines | A Derelict revealed a hidden shortcut to a safe place 1917 | -9/Mines | Found DCF Scrap (15 items) 1920 | -9/Mines | Identified exit to Zion 1950 | -9/Mines | Received a Rocket Launcher from a helpful Derelict 2009 | -9/Mines | Found a damaged Exp. Sensor Array with a note attached 2010 | -9/Mines | Found Prototype Device 2010 | -9/Mines | Identified Exp. Sensor Array 2036 | -9/Mines | Entered Zion 2044 | -7/Zion | Given the Hacking Drone Bay 2101 | -7/Zion | Given A8's code to call for help 2136 | -7/Zion | Learned location of Warlord (-4) 2139 | -7/Zion | Learned location of 1 exit from Proximity Caves 2155 | -7/Zion | Learned location of Quarantine (-2) 2204 | -7/Zion | Found Prototype Device 2204 | -7/Zion | Identified Mobile Refinery Mk. CCLXVII 2275 | -7/Zion | Discovered new exit (range 21) 2303 | -7/Zion | Build established: Hacker-Scout 2342 | -7/Zion | Identified exit to Proximity Caves 2343 | -7/Zion | Entered Proximity Caves 2344 | -6/Proximity Caves | Identified exit to Factory 2345 | -6/Proximity Caves | Reached level 10 2345 | -6/Proximity Caves | Reached level 11 2346 | -6/Proximity Caves | Spotter reported a threat 2350 | -6/Proximity Caves | Spotted B-75 Beast 2400 | -6/Proximity Caves | Core integrity fell below 50% 2413 | -6/Proximity Caves | Core integrity fell below 20% 2450 | -6/Proximity Caves | Reached level 12 2481 | -6/Proximity Caves | Spotter reported a threat 2511 | -6/Proximity Caves | Spotter reported a threat 2534 | -6/Proximity Caves | Spotter reported a threat 2573 | -6/Proximity Caves | Upgraded with Utility slot (x1) 2587 | -6/Proximity Caves | Spotter reported a threat 2604 | -6/Proximity Caves | Learned Factory terminal intel 2716 | -6/Proximity Caves | Attracted the attention of an 0b10 checkpoint 2750 | -6/Proximity Caves | Spotter reported a threat 2771 | -6/Proximity Caves | Ambushed by research squad 2889 | -6/Proximity Caves | Entered Factory 2890 | -6/Factory | Loaded intel: 26 terminal locations 2890 | -6/Factory | Core integrity fell below 50% 2891 | -6/Factory | Reached level 13 2891 | -6/Factory | Reached level 14 2892 | -6/Factory | Identified exit to DSF 2908 | -6/Factory | Entered DSF 2910 | -6/DSF | Reached level 15 2934 | -6/DSF | Additional patrols routed to DSF 2965 | -6/DSF | Upgraded with Propulsion slot (x1) 2993 | -6/DSF | Discovered new exit (range 18) 3007 | -6/DSF | Entered Factory 3008 | -5/Factory | Identified exit to Extension 3008 | -5/Factory | Core integrity fell below 50% 3009 | -5/Factory | Reached level 16 3063 | -5/Factory | Discovered new exit (range 19) 3085 | -5/Factory | Core integrity fell below 20% 3197 | -5/Factory | Identified exit to Upper Caves 3259 | -5/Factory | Reached level 17 3402 | -5/Factory | Fabricated Field Propulsion Drive (x2) 3435 | -5/Factory | Discovered new exit (range 22) 3443 | -5/Factory | Identified exit to Factory 3647 | -5/Factory | Spotted B-75 Beast 3734 | -5/Factory | Cargo convoy interrupted 3808 | -5/Factory | Discovered exit to Factory (range 13) 3886 | -5/Factory | Upgraded with Propulsion slot (x1) 3976 | -5/Factory | Entered Extension 3978 | -5/Extension | Reached level 18 4005 | -5/Extension | Identified exit to Cetus 4008 | -5/Extension | Rescued a captive Derelict 4010 | -5/Extension | Rescued a captive Derelict 4029 | -5/Extension | Rescued a captive Derelict 4151 | -5/Extension | Rescued a captive Derelict 4153 | -5/Extension | Rescued a captive Derelict 4162 | -5/Extension | Rescued a captive Derelict 4194 | -5/Extension | Spotted B-75 Beast 4230 | -5/Extension | Reached level 19 4275 | -5/Extension | Spotted B-75 Beast 4300 | -5/Extension | Discovered exit to Factory (range 16) 4318 | -5/Extension | Lost 8 allies 4328 | -5/Extension | Destroyed B-75 Beast 4347 | -5/Extension | Rescued a captive Derelict 4348 | -5/Extension | Rescued a captive Derelict 4353 | -5/Extension | Rescued a captive Derelict 4355 | -5/Extension | Rescued a captive Derelict 4395 | -5/Extension | Rescued a captive Derelict 4396 | -5/Extension | Rescued a captive Derelict 4416 | -5/Extension | Rescued a captive Derelict 4418 | -5/Extension | Rescued a captive Derelict 4420 | -5/Extension | Reached level 20 4420 | -5/Extension | Rescued a captive Derelict 4439 | -5/Extension | Rescued a captive Derelict 4440 | -5/Extension | Rescued a captive Derelict 4478 | -5/Extension | Rescued A7 4504 | -5/Extension | Upgraded with Utility slot (x1) 4520 | -5/Extension | Discovered exit to Factory (range 10) 4533 | -5/Extension | Lost 3 allies 4599 | -5/Extension | Entered Cetus 4599 | -5/Cetus | Accompanied by 16 allies (A7) 4602 | -5/Cetus | Spotted Cetus Guard 4603 | -5/Cetus | Spotted Cetus Guard 4603 | -5/Cetus | Spotted Cetus Guard 4603 | -5/Cetus | Spotted Cetus Guard 4604 | -5/Cetus | Acquired a Cetus Manufacturing Module code from A7 4620 | -5/Cetus | Allies destroyed Cetus Guard 4625 | -5/Cetus | Started Cetus Manufacturing Module 4638 | -5/Cetus | Reached level 21 4638 | -5/Cetus | Allies destroyed Cetus Guard 4645 | -5/Cetus | Allies destroyed Cetus Guard 4650 | -5/Cetus | Manufactured an Enhanced Grunt 4653 | -5/Cetus | Discovered exit to Factory (range 22) 4662 | -5/Cetus | Allies destroyed Cetus Guard 4675 | -5/Cetus | Manufactured an Enhanced Grunt 4700 | -5/Cetus | Manufactured an Enhanced Grunt 4711 | -5/Cetus | Discovered new exit (range 23) 4725 | -5/Cetus | Manufactured an Enhanced Grunt 4727 | -5/Cetus | Spotted Cetus Guard 4727 | -5/Cetus | Spotted Cetus Guard 4728 | -5/Cetus | Discovered exit to Factory (range 23) 4729 | -5/Cetus | Spotted Cetus Guard 4729 | -5/Cetus | Spotted Cetus Guard 4749 | -5/Cetus | Allies destroyed Cetus Guard 4749 | -5/Cetus | Allies destroyed Cetus Guard 4750 | -5/Cetus | Manufactured an Enhanced Grunt 4751 | -5/Cetus | Allies destroyed Cetus Guard 4758 | -5/Cetus | Destroyed Cetus Guard 4759 | -5/Cetus | Met Revision 17 4871 | -5/Cetus | Identified exit to Archives 4915 | -5/Cetus | Entered Archives 4915 | -5/Archives | Accompanied by 17 allies (A7) 4919 | -5/Archives | Met Zhirov 4920 | -5/Archives | Discovered new exit (range 22) 4921 | -5/Archives | Discovered new exit (range 22) 4923 | -5/Archives | Read partially decrypted archive contents 4925 | -5/Archives | Reinforcements dispatched to Archives 4925 | -5/Archives | Discovered exit to Factory (range 23) 4927 | -5/Archives | Unable to access archive contents 4933 | -5/Archives | Identified exit to Hub_04(d) 4970 | -5/Archives | Reinforcements dispatched to Archives 4972 | -5/Archives | Entered Hub_04(d) 4972 | -5/Hub_04(d) | Accompanied by 1 ally 4974 | -5/Hub_04(d) | Reached level 22 5041 | -5/Hub_04(d) | Identified exit to Garrison 5057 | -5/Hub_04(d) | Spotted B-75 Beast 5116 | -5/Hub_04(d) | Discovered exit to Factory (range 9) 5184 | -5/Hub_04(d) | Discovered exit to Factory (range 10) 5321 | -5/Hub_04(d) | Found Hvy. Reflective Plating 5394 | -5/Hub_04(d) | Central database locked down 5581 | -5/Hub_04(d) | Entered Garrison 5671 | -5/Garrison | Spotted B-75 Beast 5681 | -5/Garrison | Triggered checkpoint 5691 | -5/Garrison | Triggered checkpoint 5747 | -5/Garrison | Triggered checkpoint 5797 | -5/Garrison | Destroyed B-75 Beast 5840 | -5/Garrison | Reached level 23 5929 | -5/Garrison | Triggered checkpoint 5930 | -5/Garrison | Garrison Relay disabled 6039 | -5/Garrison | Discovered exit to Factory (range 3) 6096 | -5/Garrison | Discovered exit to Factory (range 10) 6105 | -5/Garrison | Triggered checkpoint 6135 | -5/Garrison | Triggered checkpoint 6191 | -5/Garrison | Triggered checkpoint 6219 | -5/Garrison | Triggered checkpoint 6232 | -5/Garrison | Discovered exit to Factory (range 12) 6249 | -5/Garrison | Rescued a captive Derelict 6291 | -5/Garrison | Triggered checkpoint 6378 | -5/Garrison | Entered Factory 6386 | -4/Factory | Reached level 24 6535 | -4/Factory | Identified exit to Research 6813 | -4/Factory | Spotted B-86 Titan 6930 | -4/Factory | Fabricated P-70 Sage (x2) 7014 | -4/Factory | Fabricated P-70 Sage (x2) 7040 | -4/Factory | Garrison activated, responded to threat 7118 | -4/Factory | Lost 4 allies 7368 | -4/Factory | Spotted B-86 Titan 7500 | -4/Factory | Fabricated Adv. Hardlight Generator (x2) 7558 | -4/Factory | Reached level 25 7628 | -4/Factory | First assault squad dispatched 7628 | -4/Factory | Discovered new exit (range 18) 7751 | -4/Factory | Core integrity fell below 50% 7783 | -4/Factory | Identified exit to Garrison 7784 | -4/Factory | Entered Garrison 7794 | -4/Garrison | Triggered checkpoint 7851 | -4/Garrison | Spotted B-86 Titan 7854 | -4/Garrison | Triggered checkpoint 7870 | -4/Garrison | Discovered new exit (range 24) 8020 | -4/Garrison | Learned Factory security intel 8132 | -4/Garrison | Destroyed B-86 Titan 8162 | -4/Garrison | Found Hvy. Reflective Plating 8167 | -4/Garrison | Upgraded with Propulsion slot (x1) 8265 | -4/Garrison | Discovered new exit (range 18) 8272 | -4/Garrison | Destroyed 7 combat bots 8368 | -4/Garrison | Reached level 26 8444 | -4/Garrison | Garrison Relay disabled 8445 | -4/Garrison | Garrison Relay disabled 8467 | -4/Garrison | Identified exit to Factory 8477 | -4/Garrison | Rewired Executioner 8478 | -4/Garrison | Rewired Executioner 8490 | -4/Garrison | Garrison Relay disabled 8492 | -4/Garrison | Triggered checkpoint 8504 | -4/Garrison | Triggered checkpoint 8542 | -4/Garrison | Triggered checkpoint 8572 | -4/Garrison | Garrison Relay disabled 8614 | -4/Garrison | Discovered exit to Factory (range 18) 8635 | -4/Garrison | Entered Factory 8635 | -4/Factory | Accompanied by 2 allies 8650 | -4/Factory | Identified exit to Upper Caves 8650 | -4/Factory | Identified exit to Armory 8878 | -4/Factory | Found Corrupted Prototype Device 9135 | -4/Factory | First assault squad dispatched 9171 | -4/Factory | Build established: Hacker-Ninja 9383 | -4/Factory | Reached level 27 9448 | -4/Factory | Entered Upper Caves 9528 | -4/Upper Caves | Met a Warlord Commander 9530 | -4/Upper Caves | Warlord Commander delivered Encrypted Comm Array 9546 | -4/Upper Caves | Destroyed 7 combat bots 9655 | -4/Upper Caves | Attracted the attention of an 0b10 outpost 9783 | -4/Upper Caves | Destroyed 7 combat bots 9828 | -4/Upper Caves | Spotted B-86 Titan 9872 | -4/Upper Caves | Destroyed B-86 Titan 9879 | -4/Upper Caves | Learned location of 1 exit from Research 9885 | -4/Upper Caves | Learned Research emergency access door positions 9945 | -4/Upper Caves | Encountered a Warlord checkpoint 10016 | -4/Upper Caves | Learned location of Testing (-3) 10046 | -4/Upper Caves | Discovered new exit (range 18) 10051 | -4/Upper Caves | Identified exit to Upper Caves 10069 | -4/Upper Caves | Identified Adv. Kinecellerator 10294 | -4/Upper Caves | Entered another Upper Caves area 10294 | -4/Upper Caves | Accompanied by 2 allies 10306 | -4/Upper Caves | Discovered exit to Research (range 5) 10311 | -4/Upper Caves | Learned Research emergency access door positions 10381 | -4/Upper Caves | Build established: Hacker-Scout 10426 | -4/Upper Caves | Entered a destroyed Warlord outpost 10487 | -4/Upper Caves | P-70 Sage assimilated allied *Clean 10549 | -4/Upper Caves | Discovered new exit (range 15) 10556 | -4/Upper Caves | Identified exit to Warlord 10642 | -4/Upper Caves | Found Alien Artifact 10850 | -4/Upper Caves | Entered Warlord 10850 | -4/Warlord | Accompanied by 1 ally 11015 | -4/Warlord | Warlord's base attacked by MAIN.C 11020 | -4/Warlord | Met Warlord 11167 | -4/Warlord | Lost 5 allies 11264 | -4/Warlord | Reached level 28 11303 | -4/Warlord | Destroyed 10 combat bots 11315 | -4/Warlord | Spotted Executioner 11315 | -4/Warlord | Spotted Striker 11315 | -4/Warlord | Spotted Executioner 11317 | -4/Warlord | Warlord forces counterattacked 11408 | -4/Warlord | Lost 11 allies 11422 | -4/Warlord | Spotted Executioner 11429 | -4/Warlord | P-80 Master assimilated allied KP-NOU(l) 11430 | -4/Warlord | Spotted Executioner 11482 | -4/Warlord | Lost 13 allies 11484 | -4/Warlord | Found Prototype Processor 11484 | -4/Warlord | Identified Exp. Targeting Computer 11515 | -4/Warlord | Spotted B-86 Titan 11515 | -4/Warlord | Spotted B-90 Cyclops 11515 | -4/Warlord | Spotted Striker 11515 | -4/Warlord | Spotted Striker 11563 | -4/Warlord | Lost 6 allies 11584 | -4/Warlord | Destroyed B-90 Cyclops 11690 | -4/Warlord | Warlord base infiltrated, sounded retreat 11715 | -4/Warlord | Spotted MB-MQZ(B) 11720 | -4/Warlord | Destroyed MB-MQZ(B) 11747 | -4/Warlord | Spotted Striker 11749 | -4/Warlord | Spotted Executioner 11769 | -4/Warlord | Destroyed 11 combat bots 11794 | -4/Warlord | Found Prototype Device 11794 | -4/Warlord | Identified Exp. Shock Absorption System 11798 | -4/Warlord | Found Prototype Launcher 11798 | -4/Warlord | Identified Chain Missile Launcher 11809 | -4/Warlord | Spotted Striker 11891 | -4/Warlord | Found Prototype Device 11891 | -4/Warlord | Identified Minesniffer Drone Bay 11995 | -4/Warlord | Spotted Executioner 12007 | -4/Warlord | Destroyed Executioner 12035 | -4/Warlord | Destroyed 12 combat bots 12074 | -4/Warlord | Found Prototype Device 12074 | -4/Warlord | Identified Exp. Cloaking Device 12079 | -4/Warlord | Found Prototype Device 12079 | -4/Warlord | Identified System Purifier 12096 | -4/Warlord | Spotted B-90 Cyclops 12097 | -4/Warlord | Spotted Executioner 12099 | -4/Warlord | Destroyed Executioner 12115 | -4/Warlord | Spotted B-86 Titan 12124 | -4/Warlord | Destroyed 10 combat bots 12157 | -4/Warlord | Spotted B-90 Cyclops 12166 | -4/Warlord | Rewired B-90 Cyclops 12202 | -4/Warlord | Destroyed B-86 Titan 12212 | -4/Warlord | Allies destroyed B-90 Cyclops 12220 | -4/Warlord | Spotted Executioner 12223 | -4/Warlord | Spotted Striker 12318 | -4/Warlord | Spotted Executioner 12321 | -4/Warlord | Destroyed Executioner 12342 | -4/Warlord | Destroyed 8 combat bots 12373 | -4/Warlord | Found Prototype Ballistic Cannon 12383 | -4/Warlord | Identified Hvy. Autocannon 12395 | -4/Warlord | Spotted Executioner 12418 | -4/Warlord | Destroyed Executioner 12460 | -4/Warlord | Spotted Striker 12481 | -4/Warlord | Spotted Striker 12487 | -4/Warlord | Destroyed Striker 12487 | -4/Warlord | Reached level 29 12515 | -4/Warlord | Destroyed 13 combat bots 12524 | -4/Warlord | Spotted Executioner 12524 | -4/Warlord | Spotted Striker 12615 | -4/Warlord | Destroyed Executioner 12628 | -4/Warlord | Destroyed Striker 12739 | -4/Warlord | Spotted Executioner 12776 | -4/Warlord | Destroyed Executioner 12897 | -4/Warlord | Destroyed 11 combat bots 12902 | -4/Warlord | Spotted Striker 12932 | -4/Warlord | Destroyed Striker 13053 | -4/Warlord | Spotted Striker 13070 | -4/Warlord | Destroyed Striker 13181 | -4/Warlord | Destroyed 8 combat bots 13685 | -4/Warlord | Discovered new exit (range 16) 13691 | -4/Warlord | Identified exit to Proximity Caves 13843 | -4/Warlord | Build established: Scavenger-Scout 13881 | -4/Warlord | Entered Proximity Caves 14001 | -3/Proximity Caves | Spotted B-86 Titan 14015 | -3/Proximity Caves | Destroyed B-86 Titan 14029 | -3/Proximity Caves | Attracted the attention of an 0b10 checkpoint 14356 | -3/Proximity Caves | Entered Research 14357 | -3/Research | Identified exit to Testing 14358 | -3/Research | Reached level 30 14397 | -3/Research | Found Prototype Device 14397 | -3/Research | Identified Exp. Shield Generator 14522 | -3/Research | Garrison activated, responded to threat 14556 | -3/Research | Revision forces began assault on 0b10 14601 | -3/Research | Met up with Revision 17++ 14614 | -3/Research | Fabricated Adv. Hardlight Generator (x2) 14701 | -3/Research | Identified exit to Garrison 14725 | -3/Research | Entered Garrison 14738 | -3/Garrison | Build established: Hacker-Scout 14767 | -3/Garrison | Triggered checkpoint 14777 | -3/Garrison | Garrison Relay disabled 14800 | -3/Garrison | Garrison Relay disabled 14902 | -3/Garrison | Spotted B-86 Titan 14926 | -3/Garrison | Destroyed B-86 Titan 14976 | -3/Garrison | Destroyed 11 combat bots 14978 | -3/Garrison | Discovered new exit (range 10) 15002 | -3/Garrison | Garrison Relay disabled 15013 | -3/Garrison | Identified exit to Research 15067 | -3/Garrison | Triggered checkpoint 15069 | -3/Garrison | Reached level 31 15095 | -3/Garrison | Destroyed 10 combat bots 15114 | -3/Garrison | Garrison Relay disabled 15136 | -3/Garrison | Discovered exit to Research (range 3) 15144 | -3/Garrison | Spotted Executioner 15145 | -3/Garrison | Spotted Executioner 15176 | -3/Garrison | Destroyed Executioner 15207 | -3/Garrison | Destroyed Executioner 15307 | -3/Garrison | Discovered exit to Research (range 9) 15329 | -3/Garrison | Garrison Relay disabled 15590 | -3/Garrison | Upgraded with Weapon slot (x1) 15593 | -3/Garrison | Upgraded with Weapon slot (x1) 15641 | -3/Garrison | Rewired Executioner 15654 | -3/Garrison | Entered Research 15654 | -3/Research | Accompanied by 1 ally 15728 | -3/Research | Fabricated Plasma Cutter (x2) 15803 | -3/Research | Spotted B-86 Titan 15830 | -3/Research | Spotted B-86 Titan 15843 | -3/Research | Destroyed B-86 Titan 15899 | -3/Research | Discovered new exit (range 4) 15899 | -3/Research | Identified exit to Research 15904 | -3/Research | First assault squad dispatched 16007 | -3/Research | Discovered exit to Testing (range 8) 16014 | -3/Research | Entered Testing 16088 | -3/Testing | Discovered exit to Research (range 9) 16149 | -3/Testing | Found Prototype Processor 16149 | -3/Testing | Identified Spectral Analyzer 16182 | -3/Testing | Found Prototype Device 16182 | -3/Testing | Identified Exp. Thermal Shield 16335 | -3/Testing | Found Prototype Launcher 16335 | -3/Testing | Identified Tactical Quantum Warhead 16342 | -3/Testing | Spotted Striker 16412 | -3/Testing | Found Prototype Device 16412 | -3/Testing | Identified 2N-1CE's Frost Array 16445 | -3/Testing | Found Exp. Hacking Suite 16472 | -3/Testing | Found Prototype Energy Cannon 16472 | -3/Testing | Identified Hpw. Disruptor Cannon 16645 | -3/Testing | Found Prototype Energy Gun 16645 | -3/Testing | Identified Hyp. EM Gauss Rifle 16658 | -3/Testing | Scanned by Researcher 16670 | -3/Testing | Spotted PD-GACEW0OQQA 16850 | -3/Testing | Entered Research 16850 | -2/Research | Warlord forces began assault on 0b10 16851 | -2/Research | Identified exit to Quarantine 16852 | -2/Research | Reached level 32 16875 | -2/Research | Distinguished unit "Viscera Detail" dispatched to help 16877 | -2/Research | Upgraded with Weapon slot (x1) 16888 | -2/Research | Found Prototype Device 16888 | -2/Research | Identified Exp. Focal Shield 16913 | -2/Research | Spotted B-90 Cyclops 16921 | -2/Research | Destroyed B-90 Cyclops 16960 | -2/Research | Research machine network offline 17089 | -2/Research | Spotted B-90 Cyclops 17093 | -2/Research | Destroyed B-90 Cyclops 17100 | -2/Research | Spotted Striker 17100 | -2/Research | Spotted Striker 17102 | -2/Research | Destroyed Striker 17120 | -2/Research | Destroyed Striker 17142 | -2/Research | Met up with Warlord 17152 | -2/Research | Lost 5 allies 17166 | -2/Research | Destroyed 10 combat bots 17194 | -2/Research | Spotted B-90 Cyclops 17195 | -2/Research | Destroyed B-90 Cyclops 17283 | -2/Research | Lost 3 allies 17292 | -2/Research | Destroyed 19 combat bots 17403 | -2/Research | Borebot progress halted 17410 | -2/Research | Borebot progress halted 17413 | -2/Research | Reached level 33 17429 | -2/Research | Upgraded with Power slot (x1) 17446 | -2/Research | Destroyed 7 combat bots 17502 | -2/Research | Discovered exit to Quarantine (range 10) 17510 | -2/Research | Entered Quarantine 17566 | -2/Quarantine | Garrison activated, responded to threat 17639 | -2/Quarantine | Spotted Alpha 7 17648 | -2/Quarantine | Destroyed Alpha 7 18010 | -2/Quarantine | First assault squad dispatched 18010 | -2/Quarantine | Found Alien Artifact 18119 | -2/Quarantine | Spotted Fortress 18177 | -2/Quarantine | Discovered new exit (range 5) 18177 | -2/Quarantine | Discovered new exit (range 6) 18178 | -2/Quarantine | Identified exit to Section 7 18179 | -2/Quarantine | Identified exit to Protoforge 18220 | -2/Quarantine | Entered Protoforge 18311 | -2/Protoforge | Spotted Hotshot 18311 | -2/Protoforge | Spotted Hotshot 18386 | -2/Protoforge | Spotted Hotshot 18386 | -2/Protoforge | Spotted Hotshot 18386 | -2/Protoforge | Spotted B-90 Cyclops 18387 | -2/Protoforge | Destroyed Hotshot 18387 | -2/Protoforge | Superfortress began startup sequence 18390 | -2/Protoforge | Destroyed Hotshot 18396 | -2/Protoforge | Destroyed Hotshot 18397 | -2/Protoforge | Destroyed Hotshot 18429 | -2/Protoforge | Destroyed B-90 Cyclops 18476 | -2/Protoforge | Spotted Decapitator 18565 | -2/Protoforge | Forge Plexus network access discovered 18662 | -2/Protoforge | Reached level 34 18714 | -2/Protoforge | Spotted Hotshot 18714 | -2/Protoforge | Spotted Hotshot 18714 | -2/Protoforge | Spotted Hotshot 18714 | -2/Protoforge | Spotted Hotshot 18714 | -2/Protoforge | Spotted Hotshot 18715 | -2/Protoforge | Spotted Hotshot 18717 | -2/Protoforge | Spotted Hotshot 18717 | -2/Protoforge | Spotted Hotshot 18720 | -2/Protoforge | First assault squad dispatched 18746 | -2/Protoforge | Spotted Hotshot 18751 | -2/Protoforge | Destroyed Hotshot 18773 | -2/Protoforge | Spotted Hotshot 18777 | -2/Protoforge | Destroyed Hotshot 18781 | -2/Protoforge | Destroyed Hotshot 18783 | -2/Protoforge | Destroyed Hotshot 18785 | -2/Protoforge | Destroyed Hotshot 18785 | -2/Protoforge | Destroyed Hotshot 18787 | -2/Protoforge | Destroyed Hotshot 18789 | -2/Protoforge | Destroyed Hotshot 18793 | -2/Protoforge | Destroyed Hotshot 18801 | -2/Protoforge | Destroyed Hotshot 18808 | -2/Protoforge | Spotted AP7-3 18811 | -2/Protoforge | Spotted AP7-3 18822 | -2/Protoforge | Destroyed 10 combat bots 18823 | -2/Protoforge | Spotted EXE-6 18824 | -2/Protoforge | Spotted EXE-6 18827 | -2/Protoforge | Spotted SKR-2 18902 | -2/Protoforge | Destroyed AP7-3 18915 | -2/Protoforge | Destroyed AP7-3 18962 | -2/Protoforge | Fabricated Graphene Brace (x2) 19063 | -2/Protoforge | Spotted Overlord 19106 | -2/Protoforge | Garrison activated, responded to threat 19139 | -2/Protoforge | Core integrity fell below 50% 19187 | -2/Protoforge | Spotted Immortal 19187 | -2/Protoforge | Spotted Immortal 19189 | -2/Protoforge | Spotted Decapitator 19189 | -2/Protoforge | Spotted Decapitator 19189 | -2/Protoforge | Spotted Decapitator 19189 | -2/Protoforge | Spotted Decapitator 19194 | -2/Protoforge | Destroyed Decapitator 19195 | -2/Protoforge | Destroyed Decapitator 19198 | -2/Protoforge | Destroyed Decapitator 19200 | -2/Protoforge | Destroyed Decapitator 19237 | -2/Protoforge | Destroyed Immortal 19261 | -2/Protoforge | Destroyed Immortal 19325 | -2/Protoforge | Found Cep. Fieldthrust Drive 19345 | -2/Protoforge | Found Faulty Cep. Fieldthrust Drive 19346 | -2/Protoforge | Upgraded with Propulsion slot (x1) 19350 | -2/Protoforge | Found Faulty Cep. Fieldthrust Drive 19421 | -2/Protoforge | Spotted V172-r 19453 | -2/Protoforge | Found Crosscalibrator 19458 | -2/Protoforge | Spotted V179-e 19458 | -2/Protoforge | Spotted V363-z 19458 | -2/Protoforge | Spotted Decapitator 19485 | -2/Protoforge | Spotted V395-c 19491 | -2/Protoforge | Spotted Decapitator 19491 | -2/Protoforge | Spotted Decapitator 19492 | -2/Protoforge | System corruption reached 10% 19597 | -2/Protoforge | Spotted AP7-3 19597 | -2/Protoforge | Spotted AP7-3 19612 | -2/Protoforge | Found Cep. Lightning Penetrator 19614 | -2/Protoforge | Found Cep. Helical Railcannon 19627 | -2/Protoforge | Found Cep. Lightning Penetrator 19672 | -2/Protoforge | Additional patrols dispatched to research labs 19739 | -2/Protoforge | Core integrity fell below 20% 19754 | -2/Protoforge | Found Faulty Cep. Plasma Driver 19797 | -2/Protoforge | Destroyed by G-73 Enforcer with Heavy Laser Last Messages --------------- 19788_ Railslug penetrates AP7-3. 19789_ System corrupted: Matter fused (-7). 19790_ C-30 ARC bursts open, deploying its payload. 19790_ G-73 Enforcer unfolds itself. 19790_ B-74 Champion unfolds itself. 19790_ G-73 Enforcer unfolds itself. 19790_ I-47 Archangel unfolds itself. 19791_ Penetrated by Slug. 19792_ Lightning Beam penetrates B-74 Champion. 19792_ Lightning Beam penetrates I-47 Archangel. 19792_ Lightning Beam penetrates Reinforced Barrier. 19792_ Railslug penetrates B-74 Champion. 19795_ System corrupted: Cep. Helical Railcannon jammed. 19795_ Lightning Beam penetrates B-74 Champion. 19795_ Lightning Beam penetrates I-47 Archangel. 19795_ Destroyed Com. Battery. 19797_ Stasis field depleted. Map ----- +----------------------------------------------------+ | | | | | | | | | | | | | | | | | | | | | | | | | ?????????????????????????????????????????????????? | | ?????????????????????????????????????????????????? | | ?????????????????????????????????????????????????? | | ?????????????????????????????????????????????????? | | ?????????????????????????????????????????????????? | | ????????????????????????????????????############## | | ##############??????????????????????#""""#"""""#"" | | """ " """"""#??????????????????????#"] [" " " "[/ | | "!"#" """"""#??????????????????????#"[ ]" " | | """ """#??????????????????????#"][/" "[ | | "#?###??????????????????##" "" | | ### ####################| | | / *=%%= ^ !%=%= 7 | | / =%!! @ b 7!%= | | / [%* ^ gggi % | | #### ####################% | | " """#?###??????????????????##""" "" | | "#"" """#??????????????????????#"[[[" /[ | | " " """""#??????????????????????#"[[]" / | | ## " T"""""#??????????????????????#"/]]" =%"// | | ?# " """"""#??????????????????????# """# [#"" | | ?#############??????????????????????####### !#### | | ??????????????????????????????????????????# #??? | | ??????????????????????????????????????????# #??? | | ??????????????????????????????????????????# #??? | | ??????????????????????????????????????????# #??? | | ??????????????????????????????????????????# #??? | | ??????????????????????????????????????????# #??? | | ??????????????????????????????????????????# #??? | | ??????????????????????????????????????????# %%#### | | ??????????????????????????????????????????# | | ??????????????????????????????????????????# [ | | ??????????????????????????????????????????# [%%=! | | ??????????????????????????????????????????##!!#### | | ???????????????????????????????????????????####??? | | ?????????????????????????????????????????????????? | | ?????????????????????????????????????????????????? | | ?????????????????????????????????????????????????? | +----------------------------------------------------+ Best States ------------- Heat Dissipation 221 Energy Generation 79 Energy Capacity 1000 Matter Stores 300 Matter Capacity 300 Sight Range 27 Robot Scan Range 38 Terrain Scan Range 16 Terrain Scan Density 510 ECM Strength 1 Jamming Range 14 Cloak Strength 2 Power Amplification 40 Additional Mass Support 9 Base Temperature (-) 200 Armor Coverage 600 Resistance: KI 50 Resistance: TH 50 Resistance: EX 95 Resistance: EM 20 Resistance: I 20 Resistance: S 20 Resistance: P 20 Weapon Cycling 25 Evasion (%) 78 Targeting Accuracy 12 Energy Filtering 50 Particle Charging 25 Kinecelleration 50 Offensive Hacking 41 Defensive Hacking 19 Authchip Count 2 Trap Extractor Capacity 4 Item Schematics ----------------- ECM Suite | -10/Materials | Hacked Plasma Cutter | -9/Materials | Extracted Particle Cannon | -9/Materials | Extracted Datajack | -9/Materials | Extracted VTOL Module | -9/Mines | Hacked Salvage Targeting Computer | -9/Mines | Hacked Imp. Trap Extractor | -5/Factory | Hacked Field Propulsion Drive | -5/Factory | Hacked Adv. Trap Extractor | -5/Hub_04(d) | Hacked Mic. Antimatter Reactor | -4/Factory | Hacked Adv. Hardlight Generator | -4/Factory | Hacked Hvy. Gatling Laser | -2/Quarantine | Archive Molecular Scythe | -2/Quarantine | Archive Prc. Energy Filter | -2/Quarantine | Archive Prc. Phase Gun | -2/Quarantine | Archive Hvy. Neutron Cannon | -2/Quarantine | Archive Exp. Target Analyzer | -2/Quarantine | Archive Graphene Brace | -2/Protoforge | Hacked Imp. Quantum Reactor | -2/Protoforge | Archive Exp. Biometal Heavy Treads | -2/Protoforge | Archive Diametric Drive | -2/Protoforge | Archive Exp. Q-thruster | -2/Protoforge | Archive Graviton Reactor | -2/Protoforge | Archive Adv. Gravity Neutralizer | -2/Protoforge | Archive Ionic Axe | -2/Protoforge | Archive Com. Linear Accelerator | -2/Protoforge | Archive Robot Schematics ------------------ P-70 Sage | -4/Factory | Hacked L-61 Swordsman | -2/Protoforge | Archive R-10 Processor | -2/Protoforge | Archive A-02 Transporter | -2/Protoforge | Archive Fabricated ------------ Field Propulsion Drive | x2 | -5/Factory | Authchip P-70 Sage | x2 | -4/Factory | Authchip P-70 Sage | x2 | -4/Factory | Authchip Adv. Hardlight Generator | x2 | -4/Factory Adv. Hardlight Generator | x2 | -3/Research Plasma Cutter | x2 | -3/Research Graphene Brace | x2 | -2/Protoforge Repaired ---------- Nothing Alien Tech Used ----------------- None Achievements -------------- None Challenges ------------ None RPGLIKE | -11 -10 -10 -9 -9 -7 -6 -6 -6 -5 -5 -5 -5 -5 -5 -4 -4 -4 -4 -4 -4 -3 -3 -3 -3 -3 -2 -2 -2 --------- Run | Yrd Mat Min Mat Min Zio Pro Fac DSF Fac Ext Cet Arc Hub Gar Fac Gar Fac Upp Upp War Pro Res Gar Res Tes Res Qua Frg Levels Raised 33 | . 2 1 4 1 . 3 2 1 2 3 1 . 1 1 2 1 1 . . 2 . 1 1 . . 2 . 1 XP Earned 54530 | 4000 4284 850 6723 871 649 4494 1949 1816 3394 4511 1261 567 1120 960 2866 1640 1067 604 207 2921 456 867 1200 193 459 2202 801 1598 XP Spent 53475 | 2700 3750 2050 5950 500 . 5300 . 3830 3240 4250 . . 1800 2750 600 3000 1050 . . 4880 . . 2500 . . 2700 . 2625 Upgrades 100 | 11 7 3 14 1 . 16 . 6 13 4 . . 3 4 1 2 1 . . 6 . . 2 . . 3 . 3 Power Slot 2 | 1 . . . . . . . . . . . . . . . . . . . . . . . . . 1 . . Propulsion Slot 5 | 1 . . . . . . . 1 1 . . . . . . 1 . . . . . . . . . . . 1 Utility Slot 8 | 1 2 1 2 . . 1 . . . 1 . . . . . . . . . . . . . . . . . . Weapon Slot 5 | 1 1 . . . . . . . . . . . . . . . . . . . . . 2 . . 1 . . Core Integrity 11 | . . . . . . 6 . 2 2 . . . . . . . . . . . . . . . . . . 1 Heat Dissipation 16 | 6 . . . . . . . . 6 . . . . . . . . . . 4 . . . . . . . . Energy Generation 4 | . . . . . . . . . . 3 . . . . . . 1 . . . . . . . . . . . Mass Support 5 | 1 . 1 . . . . . 1 . . . . . . . 1 . . . 1 . . . . . . . . Inventory Capacity 6 | . 1 . . 1 . . . 2 . . . . . 1 . . . . . 1 . . . . . . . . Sight Range 3 | . . . 3 . . . . . . . . . . . . . . . . . . . . . . . . . Sensor Range 9 | . . . 9 . . . . . . . . . . . . . . . . . . . . . . . . . Terrain Scan Density 5 | . . 1 . . . . . . 4 . . . . . . . . . . . . . . . . . . . Ranged Accuracy 3 | . . . . . . . . . . . . . . 3 . . . . . . . . . . . . . . Hack Attack % 4 | . 2 . . . . . . . . . . . . . 1 . . . . . . . . . . . . 1 Hack Defense % 1 | . 1 . . . . . . . . . . . . . . . . . . . . . . . . . . . KI Resistance % 4 | . . . . . . 3 . . . . . . 1 . . . . . . . . . . . . . . . TH Resistance % 4 | . . . . . . 3 . . . . . . 1 . . . . . . . . . . . . . . . EX Resistance % 4 | . . . . . . 3 . . . . . . 1 . . . . . . . . . . . . . . . TH Damage % 1 | . . . . . . . . . . . . . . . . . . . . . . . . . . 1 . . Protomatter Created 10983 | . 300 34 597 28 . 72 . 11 44 179 54 . 82 654 671 577 406 512 155 2124 111 26 878 323 220 1078 642 1205 Integrity Restored 18856 | . 512 90 605 32 . 363 . . 132 1230 393 . 342 1424 853 1578 515 520 253 4654 307 193 439 120 206 942 714 2439 Core 14208 | . 414 60 500 32 . 363 . . 132 1230 330 . 342 779 599 1081 214 274 157 3588 212 84 293 72 183 653 543 2073 Parts 4648 | . 98 30 105 . . . . . . . 63 . . 645 254 497 301 246 96 1066 95 109 146 48 23 289 171 366 Protomatter Decayed 8253 | . 71 279 363 128 . . . . 303 . 58 . 54 223 266 76 365 323 134 1713 71 457 644 192 52 1665 675 141 Game ------ Seed ImpactBattleBlade Manual? 0 Play Time 06:47:58 Cumulative 379.3 hours Start 2025.09.15 @ 10:31:14 End 2025.09.23 @ 12:31:47 Sessions 11 Manual Loads 0 Difficulty Adventurer Special Mode Winter2019/RPGLIKE Game No. 139 Rogue 0 Adventurer 139 Explorer 0 Win Type - Total 14 Types 2/3/3/3/1/0/0/0/1/1 Lore% 90 Gallery% 81 Achievement% 82 Wizard Run 0 Options --------- Layout 2 ASCII 0 Keyboard 0 Movement Numpad Keybinds 0 Fullscreen 2 Font 24/Smallcaps Map View 50x44 Zoom Use 0% Tactical HUD 1 Map Filters NONE Filters NONE Steam 1 RUN: bda63134-dcc8-417f-bb87-062380300a4e